{"text_format":"1","workbook":"xlsx","n_sheets":1,"sheets":["РАСЧЕТ"],"not_rendered":{"charts":0,"images":0,"macros":1,"external_links":0,"defined_names":65,"comments":0,"pivot_tables":0},"unopened":[],"bounds":{"document_bytes":16777216,"sheet_cells":100000,"rows_first":2000,"rows_last":500,"rows_between":2000,"halvings":0,"cell_chars":16384,"cell_head_chars":4096},"cells_cut":0,"cells_raw":0,"read":"whole","date_system":"1900"}

{"sheet":"РАСЧЕТ","index":0,"n_rows":369,"n_cols":174,"rows_kept":369,"cut":false,"hidden":false,"merged":[[0,0,0,10],[104,170,104,173],[365,170,365,173],[365,166,365,169],[364,88,364,127],[364,128,364,157],[364,158,364,169],[365,52,365,63],[365,64,365,73],[365,74,365,77],[365,78,365,87],[365,88,365,99],[365,100,366,103],[365,104,365,115],[365,116,365,127],[365,128,365,137],[365,138,365,147],[365,148,365,157],[365,158,365,161],[365,162,365,165],[57,2,57,7],[104,138,104,147],[104,148,104,157],[104,158,104,161],[103,128,103,157],[103,158,103,169],[104,100,105,103],[104,104,104,115],[104,88,104,99],[104,128,104,137],[74,2,74,10],[76,1,76,2],[67,1,67,2],[75,2,75,7],[75,8,75,9],[104,162,104,165],[104,166,104,169],[104,116,104,127],[103,88,103,127],[81,2,81,6],[81,8,81,10],[82,1,83,10],[1,2,1,10],[46,1,46,2],[9,2,9,4],[8,2,8,4],[63,2,63,10],[13,1,13,10],[31,2,31,10],[20,2,20,10],[38,2,38,10],[29,2,29,10],[27,2,27,10],[40,2,40,10],[8,1,9,1],[16,2,16,10],[54,2,54,10],[34,2,34,7],[58,1,58,2],[52,2,52,10],[4,1,4,10],[6,1,6,10],[5,1,5,10],[45,2,45,7],[44,2,44,10],[49,1,49,10],[2,12,2,13],[61,2,61,10],[70,2,70,10],[72,2,72,10],[66,2,66,7],[66,8,66,9],[65,2,65,10],[2,2,2,10],[35,1,35,2],[24,1,24,2],[23,8,23,9],[22,2,22,10],[9,9,9,10],[8,9,8,10],[9,6,9,8],[18,2,18,10],[8,6,8,8],[34,8,34,9],[23,2,23,7],[33,2,33,10],[42,2,42,10],[45,8,45,9],[57,8,57,9],[56,2,56,10],[366,18,366,19],[365,20,365,31],[365,32,366,35],[365,36,365,47],[365,48,366,51],[364,20,364,63],[364,64,364,87],[104,52,104,63],[103,20,103,63],[103,64,103,87],[104,74,104,77],[104,64,104,73],[104,78,104,87],[104,36,104,47],[104,32,105,35],[104,48,105,51],[104,20,104,31],[105,18,105,19]]}
[null,null,null,null,null,null,null,null,null,null,null,null,null,null,null,null,1,2,3,4,5,6,7,8,9,10]
[null,"Наименование муниципального образования:",null,null,null,null,null,null,null,null,null,null,null,null,null,null,null,"в одну нить (однотрубная)"]
[null,"Наименование сетевой организаци:",null,null,null,null,null,null,null,null,null,null,"расчет",null,null,null,null,"менее 70 мм (включительно)","от 70 мм до 100 мм (включительно)","от 100 мм до 125 мм (включительно)","от 125 мм до 150 мм (включительно)","от 100 мм до 150 мм (включительно)","от 150 мм до 200 мм (включительно)","от 200 мм до 250 мм (включительно)","менее 40 мм (включительно)","от 40 мм до 70 мм (включительно)",null,null,"Две нитки"]
[null,null,null,null,null,null,null,null,null,null,null,null,null,null,null,null,"водопроводная сеть_чугунные напорные раструбные трубы",48,50,null,null,52,54,56,null,null,null,null,"менее 70 мм (включительно)","от 70 мм до 100 мм (включительно)","от 100 мм до 125 мм (включительно)","от 125 мм до 150 мм (включительно)","от 100 мм до 150 мм (включительно)","от 150 мм до 200 мм (включительно)","от 200 мм до 250 мм (включительно)"]
[null,"Размер платы за подключение к централизованной системе водоснабжения и (или) водоотведения рассчитывается по следующей формуле:",null,null,null,null,null,null,null,null,null,null,null,null,null,null,"водопроводная сеть_стальные трубы",72,74,76,78,null,80,82,null,null,null,"водопроводная сеть - чугунные напорные раструбные трубы ",85,86,null,null,87,88,89]
[null,"ПП=Тп,м ∙ М + ∑ (Тdпр ∙ Ld), где:",null,null,null,null,null,null,null,null,null,null,null,null,null,null,"водопроводная сеть_полиэтиленовые трубы",4,6,8,10,null,12,14,154,156,null,"водопроводная сеть - стальные трубы",90,91,92,93,null,94,95]
[null,"ПП - плата за подключение объекта абонента к централизованной системе водоснабжения и (или) водоотведения, тыс. руб.;\nТп,м - ставка тарифа за подключаемую нагрузку водопроводной или канализационной сети, тыс. руб./куб. м в сут.;\nМ - подключаемая нагрузка (мощность) объекта абонента, куб. м/сут.;\nТdпр- ставка тарифа за протяженность водопроводной или канализационной сети диаметром d, тыс. руб./км;\nL - протяженность водопроводной или канализационной сети от точки подключения объекта заявителя до точки подключения создаваемых организацией водопроводных и (или) канализационных сетей к объектам централизованной системы водоснабжения и (или) водоотведения, км. ",null,null,null,null,null,null,null,null,null,null,null,null,null,null,"водовод_чугунные напорные раструбные трубы с заделкой раструбов резиновыми уплотнительными манжетами",62,64,null,null,66,68,70,null,null,null,"водопроводная сеть - полиэтиленовые трубы",96,97,98,99,null,100,101]
[null,null,null,null,null,null,null,null,null,null,null,null,null,null,null,null,"водовод _стальные трубы",100,102,104,106,null,108,110,null,null,null,"водовод - чугунные напорные раструбные трубы с заделкой раструбов резиновыми уплотнительными манжетами ",102,103,null,null,104,105,106]
[null,"Подключаемая нагрузка, куб. м. в сутки","к сетям водоснабжения:",null,null,"ставка, тыс.руб.м3/ сут.","к сетям водоотведения:",null,null,"ставка, тыс.руб.м3/ сут.",null,null,null,null,null,null,"водовод _полиэтиленовые трубы",36,38,40,42,null,44,46,null,null,null,"водовод - стальные трубы ",107,108,109,110,null,111,112]
[null,null,null,null,null,{"$f":"IF(C3=0,0,VLOOKUP(C3,R109:FN364,2,FALSE))","v":0},null,null,null,{"$f":"IF(C3=0,0,VLOOKUP(C3,R109:FN364,3,FALSE))","v":0},null,null,{"$f":"C10*F10+G10*J10","v":0},{"$f":"J10*G10+F10*C10","v":0},null,null,"прокладка сети из полиэтиленовых труб в стальном футляре",20,22,24,26,null,28,30,null,null,null,"водовод - полиэтиленовые трубы ",113,114,115,116,null,117,118]
[null,null,null,null,null,null,null,null,null,null,null,null,null,null,null,null,"прокладка сети из стальных труб в стальном футляре",88,90,92,94,null,96,98,null,null,null,"прокладка сети из полиэтиленовых труб в стальном футляре ",119,120,121,122,null,123,124]
[null,"Размер платы за подключаемую нагрузку, тыс.руб.:",{"$f":"IF(OR(C10=0,F10=0),\"0,00\",C10)","v":"0,00"},"х",{"$f":"IF(OR(C10=0,F10=0),0,F10)","v":0},"+",{"$f":"IF(OR(G10=0,J10=0),\"0,00\",G10)","v":"0,00"},"х",{"$f":"IF(OR(G10=0,J10=0),0,J10)","v":0},"=",{"$f":"C12*E12+G12*I12","v":0},null,null,null,null,null,"прокол сети водоснабжения на длину до 10 м глубиной 3 м",112,114,116,null,null,118,120,null,null,null,"прокол сети водоснабжения на длину до 10 м глубиной 3 м "]
[null,null,null,null,null,null,null,null,null,null,null,null,null,null,null,null,"прокол сети водоснабжения на длину до 30 м глубиной 3 м",122,124,126,null,null,128,130,null,null,null,"прокол сети водоснабжения на длину до 30 м глубиной 3 м "]
[null,"Строительство сетей водоснабжения",null,null,null,null,null,null,null,null,null,null,null,null,null,null,"прокол сети водоснабжения на длину до 50 м глубиной 3 м",132,134,136,null,null,138,140,null,null,null,"прокол сети водоснабжения на длину до 50 м глубиной 3 м "]
[]
[null,"Участок 1",null,null,null,null,null,null,null,null,null,null,null,null,null,null,null,"Две нитки"]
[null,"материал трубопровода:",null,null,null,null,null,null,null,null,null,null,null,null,null,null,null,"менее 70 мм (включительно)","от 70 мм до 100 мм (включительно)","от 100 мм до 125 мм (включительно)","от 125 мм до 150 мм (включительно)","от 100 мм до 150 мм (включительно)","от 150 мм до 200 мм (включительно)","от 200 мм до 250 мм (включительно)","менее 40 мм (включительно)","от 40 мм до 70 мм (включительно)"]
[null,null,null,null,null,null,null,null,null,null,null,null,null,null,null,null,"водопроводная сеть_чугунные напорные раструбные трубы",49,51,null,null,53,55,57]
[null,"диаметр трубопровода, мм",null,null,null,null,null,null,null,null,null,null,{"$f":"IFERROR(IF(C19=0,0,VLOOKUP(C17,Q3:Z14,IF(C19=$R$3,2,IF(C19=$S$3,3,IF(C19=$T$3,4,IF(C19=$U$3,5,IF(C19=$V$3,6,IF(C19=$W$3,7,IF(C19=$X$3,8,IF(C19=$Y$3,9,IF(C19=$Z$3,10,0))))))))),0)),0)","v":0},null,null,null,"водопроводная сеть_стальные трубы",73,75,77,79,null,81,83]
[null,null,null,null,null,null,null,null,null,null,null,null,{"$f":"IFERROR(VLOOKUP(C17,Q17:Z28,IF(C19=$R$3,2,IF(C19=$S$3,3,IF(C19=$T$3,4,IF(C19=$U$3,5,IF(C19=$V$3,6,IF(C19=$W$3,7,IF(C19=$X$3,8,IF(C19=$Y$3,9,IF(C19=$Z$3,10,0))))))))),0),0)","v":0},null,null,null,"водопроводная сеть_полиэтиленовые трубы",5,7,9,11,null,13,15,155,157]
[null,"способ прокладки трубопровода:",null,null,null,null,null,null,null,null,null,null,{"$f":"IFERROR(IF(OR(C17=0,C19=0,C21=0,M19=0),0,VLOOKUP($C$3,$R$109:$FR$364,IF(C21=Q33,M19,M20),FALSE)),0)","v":0},{"$f":"IF(OR(C17=AA42,C17=AB42,C17=AC42),M21,M21*C23)","v":0},null,null,"водовод_чугунные напорные раструбные трубы с заделкой раструбов резиновыми уплотнительными манжетами",63,65,null,null,67,69,71]
[null,null,null,null,null,null,null,null,null,null,null,null,null,null,null,null,"водовод _стальные трубы",101,103,105,107,null,109,111]
[null,"протяженность, м",null,null,null,null,null,null,null,null,null,null,null,null,null,null,"водовод _полиэтиленовые трубы",37,39,41,43,null,45,47]
[null,null," ",null,null,null,null,null,{"$f":"M21","v":0},null,{"$f":"IF(OR(C17=AA42,C17=AB42,C17=AC42),L25,L24)","v":"тыс.руб./м."},"тыс.руб./м.",null,null,null,null,"прокладка сети из полиэтиленовых труб в стальном футляре",21,23,25,27,null,29,31]
[null,"Стоимость строительства участка №1, тыс.руб.:",null,null,{"$f":"IF(OR(C23=0,I24=0),\"-\",IF(OR(C17=AA42,C17=AB42,C17=AC42),1,C23))","v":"-"},"х",{"$f":"IF(OR(C23=0,I24=0),\"-\",I24)","v":"-"},null,"=",null,{"$f":"IFERROR(IF(OR(C23=0,I24=0),\"-\",E25*G25),0)","v":"-"},"тыс.руб.",null,null,null,null,"прокладка сети из стальных труб в стальном футляре",89,91,93,95,null,97,99]
[null,null,null,null,null,null,null,null,null,null,{"$f":"IF(OR(C17=AA42,C17=AB42,C17=AC42),\"цена за 1 прокол\", \" \")","v":" "},null,null,null,null,null,"прокол сети водоснабжения на длину до 10 м глубиной 3 м",113,115,117,null,null,119,121]
[null,"Участок 2",null,null,null,null,null,null,null,null,null,null,null,null,null,null,"прокол сети водоснабжения на длину до 30 м глубиной 3 м",123,125,127,null,null,129,131]
[null,"материал трубопровода:",null,null,null,null,null,null,null,null,null,null,null,null,null,null,"прокол сети водоснабжения на длину до 50 м глубиной 3 м",133,135,137,null,null,139,141]
[null,null,null,null,null,null,null,null,null,null,null,null,{"$f":"IFERROR(IF(C30=0,0,VLOOKUP(C28,Q3:Y14,IF(C30=R3,2,IF(C30=S3,3,IF(C30=T3,4,IF(C30=U3,5,IF(C30=V3,6,IF(C30=W3,7,IF(C30=X3,8,IF(C30=#REF!,9,0)))))))),0)),0)","v":0}]
[null,"диаметр трубопровода, мм",null,null,null,null,null,null,null,null,null,null,{"$f":"IFERROR(IF(C30=0,0,VLOOKUP(C28,Q17:Y28,IF(C30=R3,2,IF(C30=S3,3,IF(C30=T3,4,IF(C30=U3,5,IF(C30=V3,6,IF(C30=W3,7,IF(C30=X3,8,IF(C30=#REF!,9,0)))))))),0)),0)","v":0}]
[null,null,null,null,null,null,null,null,null,null,null,null,{"$f":"IFERROR(IF(OR(C28=0,C30=0,C32=0,M30=0),0,VLOOKUP(C3,R109:FN364,IF(C32=Q33,M29,M30),FALSE)),0)","v":0},{"$f":"IF(OR(C28=AA42,C28=AB42,C28=AC42),M31,C34*M31)","v":0},null,null,null,null,"до 100 мм (включительно)","до 125 мм (включительно)","от 125 мм до 150 мм (включительно)","от 100 мм до 150 мм (включительно)","от 100 мм до 160 мм (включительно)","от 150 мм до 200 мм (включительно)","от 160 мм до 200 мм (включительно)","от 200 мм до 250 мм (включительно)","более 250 мм"]
[null,"способ прокладки трубопровода:",null,null,null,null,null,null,null,null,null,null,null,null,null,null,null,"канализационная сеть_чугунные безнапорные раструбные трубы",58,null,null,59,null,60,null,61]
[null,null,null,null,null,null,null,null,null,null,null,null,null,null,null,null,"в одну нить (однотрубная)","канализационная сеть_полиэтиленовые трубы",16,null,null,null,17,null,18,19]
[null,"протяженность, м",null,null,null,null,null,null,null,null,null,null,null,null,null,null,"в две нити (двухтрубная)","прокладка сети из полиэтиленовых труб в стальном футляре_канализация",null,32,33,null,null,34,null,35]
[null,null,null,null,null,null,null,null,{"$f":"M31","v":0},null,{"$f":"IF(OR(C28=AA42,C28=AB42,C28=AC42),L25,L24)","v":"тыс.руб./м."},null,null,null,null,null,null,"прокол сети водоотведения на длину до 10 м глубиной 3 м",142,null,null,143,null,144,null,145]
[null,"Стоимость строительства участка №2, тыс.руб.:",null,null,{"$f":"IF(OR(C34=0,I35=0),\"-\",IF(OR(C28=AA42,C28=AB42,C28=AC42),1,C34))","v":"-"},"х",{"$f":"IF(OR(C34=0,I35=0),\"-\",I35)","v":"-"},null,"=",null,{"$f":"IFERROR(IF(OR(C34=0,I35=0),\"-\",E36*G36),0)","v":"-"},null,null,null,null,null,null,"прокол сети водоотведения на длину до 30 м глубиной 3 м",146,null,null,147,null,148,null,149]
[null,null,null,null,null,null,null,null,null,null,{"$f":"IF(OR(C28=AA42,C28=AB42,C28=AC42),\"цена за 1 прокол\", \" \")","v":" "},null,null,null,null,null,null,"прокол сети водоотведения на длину до 50 м глубиной 3 м",150,null,null,151,null,152,null,153]
[null,"Участок 3"]
[null,"материал трубопровода:"]
[null,null,null,null,null,null,null,null,null,null,null,null,null,null,null,null,"менее 40 мм (включительно)"]
[null,"диаметр трубопровода, мм",null,null,null,null,null,null,null,null,null,null,{"$f":"IFERROR(IF(C41=0,0,VLOOKUP(C39,Q3:Y14,IF(C41=$R$3,2,IF(C41=$S$3,3,IF(C41=$T$3,4,IF(C41=$U$3,5,IF(C41=$V$3,6,IF(C41=$W$3,7,IF(C41=$X$3,8,IF(C41=#REF!,9,0)))))))),0)),0)","v":0},null,null,null,"от 40 мм до 70 мм (включительно)",null,"ВОДА"]
[null,null,null,null,null,null,null,null,null,null,null,null,{"$f":"IFERROR(IF(C41=0,0,VLOOKUP(C39,Q17:Y28,IF(C41=$R$3,2,IF(C41=$S$3,3,IF(C41=$T$3,4,IF(C41=$U$3,5,IF(C41=$V$3,6,IF(C41=$W$3,7,IF(C41=$X$3,8,IF(C41=#REF!,9,0)))))))),0)),0)","v":0},null,null,null,"менее 70 мм (включительно)",null,"водопроводная сеть_чугунные напорные раструбные трубы","водопроводная сеть_стальные трубы","водопроводная сеть_полиэтиленовые трубы","водовод_чугунные напорные раструбные трубы с заделкой раструбов резиновыми уплотнительными манжетами","водовод _стальные трубы","водовод _полиэтиленовые трубы","прокладка сети из полиэтиленовых труб в стальном футляре","прокладка сети из стальных труб в стальном футляре","прокол сети водоснабжения на длину до 10 м глубиной 3 м","прокол сети водоснабжения на длину до 30 м глубиной 3 м","прокол сети водоснабжения на длину до 50 м глубиной 3 м"]
[null,"способ прокладки трубопровода:",null,null,null,null,null,null,null,null,null,null,{"$f":"IFERROR(IF(OR(C39=0,C41=0,C43=0,M42=0),0,VLOOKUP($C$3,$R$109:$FN$364,IF(C43=Q33,M41,M42),FALSE)),0)","v":0},{"$f":"IF(OR(C39=AA42,C39=AB42,C39=AC42),M43,M43*C45)","v":0},null,null,"от 70 мм до 100 мм (включительно)",null,"менее 70 мм (включительно)","менее 70 мм (включительно)","менее 40 мм (включительно)","менее 70 мм (включительно)","менее 70 мм (включительно)","менее 70 мм (включительно)","менее 70 мм (включительно)","менее 70 мм (включительно)","менее 70 мм (включительно)","менее 70 мм (включительно)","менее 70 мм (включительно)"]
[null,null,null,null,null,null,null,null,null,null,null,null,null,null,null,null,"от 100 мм до 125 мм (включительно)",null,"от 70 мм до 100 мм (включительно)","от 70 мм до 100 мм (включительно)","от 40 мм до 70 мм (включительно)","от 70 мм до 100 мм (включительно)","от 70 мм до 100 мм (включительно)","от 70 мм до 100 мм (включительно)","от 70 мм до 100 мм (включительно)","от 70 мм до 100 мм (включительно)","от 70 мм до 100 мм (включительно)","от 70 мм до 100 мм (включительно)","от 70 мм до 100 мм (включительно)"]
[null,"протяженность, м",null,null,null,null,null,null,null,null,null,null,null,null,null,null,"от 125 мм до 150 мм (включительно)",null,"от 100 мм до 150 мм (включительно)","от 100 мм до 125 мм (включительно)","менее 70 мм (включительно)","от 100 мм до 150 мм (включительно)","от 100 мм до 125 мм (включительно)","от 100 мм до 125 мм (включительно)","от 100 мм до 125 мм (включительно)","от 100 мм до 125 мм (включительно)","от 100 мм до 125 мм (включительно)","от 100 мм до 125 мм (включительно)","от 100 мм до 125 мм (включительно)"]
[null,null,null,null,null,null,null,null,{"$f":"M43","v":0},null,{"$f":"IF(OR(C39=AA42,C39=AB42,C39=AC42),L25,L24)","v":"тыс.руб./м."},null,null,null,null,null,"от 100 мм до 150 мм (включительно)",null,"от 150 мм до 200 мм (включительно)","от 125 мм до 150 мм (включительно)","от 70 мм до 100 мм (включительно)","от 150 мм до 200 мм (включительно)","от 125 мм до 150 мм (включительно)","от 125 мм до 150 мм (включительно)","от 125 мм до 150 мм (включительно)","от 125 мм до 150 мм (включительно)","от 150 мм до 200 мм (включительно)","от 150 мм до 200 мм (включительно)","от 150 мм до 200 мм (включительно)"]
[null,"Стоимость строительства участка №3, тыс.руб.:",null,null,{"$f":"IF(OR(C45=0,I46=0),\"-\",IF(OR(C39=AA42,C39=AB42,C39=AC42),1,C45))","v":"-"},"х",{"$f":"IF(OR(C45=0,I46=0),\"-\",I46)","v":"-"},null,"=",null,{"$f":"IFERROR(IF(OR(C45=0,I46=0),\"-\",E47*G47),0)","v":"-"},null,null,null,null,null,"от 150 мм до 200 мм (включительно)",null,"от 200 мм до 250 мм (включительно)","от 150 мм до 200 мм (включительно)","от 100 мм до 125 мм (включительно)","от 200 мм до 250 мм (включительно)","от 150 мм до 200 мм (включительно)","от 150 мм до 200 мм (включительно)","от 150 мм до 200 мм (включительно)","от 150 мм до 200 мм (включительно)","от 200 мм до 250 мм (включительно)","от 200 мм до 250 мм (включительно)","от 200 мм до 250 мм (включительно)"]
[null,null,null,null,null,null,null,null,null,null,{"$f":"IF(OR(C39=AA42,C39=AB42,C39=AC42),\"цена за 1 прокол\", \" \")","v":" "},null,null,null,null,null,"от 200 мм до 250 мм (включительно)",null,null,"от 200 мм до 250 мм (включительно)","от 125 мм до 150 мм (включительно)",null,"от 200 мм до 250 мм (включительно)","от 200 мм до 250 мм (включительно)","от 200 мм до 250 мм (включительно)","от 200 мм до 250 мм (включительно)"]
[null,null,null,null,null,null,null,null,null,null,null,null,null,null,null,null,"более 250 мм",null,null,null,"от 150 мм до 200 мм (включительно)"]
[null,"Строительство сетей водоотведения",null,null,null,null,null,null,null,null,null,null,null,null,null,null,"канализационная сеть - чугунные безнапорные раструбные трубы",null,null,null,"от 200 мм до 250 мм (включительно)"]
[null,null,null,null,null,null,null,null,null,null,null,null,null,null,null,null,"канализационная сеть - полиэтиленовые  трубы",null,null,null,"от 200 мм до 250 мм (включительно)"]
[null,"Участок 1",null,null,null,null,null,null,null,null,null,null,null,null,null,null,"прокладка сети из полиэтиленовых труб в стальном футляре ",null,{"$f":"VLOOKUP(C17,Q3:X14,IF(C19=R3,1,IF(C19=S3,2,IF(C19=T3,3,IF(C19=U3,4,IF(C19=V3,5,IF(C19=W3,6,IF(C19=X3,7,0))))))),FALSE)","v":{"$error":"#N/A"}}]
[null,"материал трубопровода:",null,null,null,null,null,null,null,null,null,null,{"$f":"IFERROR(IF(C55=0,0,VLOOKUP(C53,R31:AA38,IF(C55=S31,2,IF(C55=T31,3,IF(C55=U31,4,IF(C55=V31,5,IF(C55=W31,6,IF(C55=X31,7,IF(C55=Y31,8,IF(C55=Z31,9,IF(C55=AA31,10,0))))))))),FALSE)),0)","v":0},null,null,null,"прокол сети водоотведения на длину до 10 м глубиной 3 м "]
[null,null,null,null,null,null,null,null,null,null,null,null,null,null,null,null,"прокол сети водоотведения на длину до 30 м глубиной 3 м ",null,"канализационная сеть_чугунные безнапорные раструбные трубы","канализационная сеть_полиэтиленовые трубы","прокладка сети из полиэтиленовых труб в стальном футляре_канализация","прокол сети водоотведения на длину до 10 м глубиной 3 м","прокол сети водоотведения на длину до 30 м глубиной 3 м","прокол сети водоотведения на длину до 50 м глубиной 3 м"]
[null,"диаметр трубопровода, мм",null,null,null,null,null,null,null,null,null,null,null,null,null,null,"прокол сети водоотведения на длину до 50 м глубиной 3 м ",null,"до 100 мм (включительно)","до 100 мм (включительно)","до 125 мм (включительно)","до 100 мм (включительно)","до 100 мм (включительно)","до 100 мм (включительно)"]
[null,null,null,null,null,null,null,null,null,null,null,null,null,null,null,null,null,null,"от 100 мм до 150 мм (включительно)","от 100 мм до 160 мм (включительно)","от 125 мм до 150 мм (включительно)","от 100 мм до 150 мм (включительно)","от 100 мм до 150 мм (включительно)","от 100 мм до 150 мм (включительно)"]
[null,"протяженность, м",null,null,null,null,null,null,null,null,null,null,null,null,null,null,null,null,"от 150 мм до 200 мм (включительно)","от 160 мм до 200 мм (включительно)","от 150 мм до 200 мм (включительно)","от 150 мм до 200 мм (включительно)","от 150 мм до 200 мм (включительно)","от 150 мм до 200 мм (включительно)"]
[null,null,null,null,null,null,null,null,{"$f":"IFERROR(IF(OR(C53=0,C55=0,M53=0),0,VLOOKUP(C3,$R$109:$FN$364,M53,FALSE)),0)","v":0},null,{"$f":"IF(OR(C53=R35,C53=R36,C53=R37),L25,L24)","v":"тыс.руб./м."},null,{"$f":"IFERROR(IF(OR(C53=0,C55=0,M53=0),0,VLOOKUP($C$3,$R$109:$FN$364,M53,FALSE)),0)","v":0},{"$f":"IFERROR(IF(OR(C53=R35,C53=R36,C53=R37),M58,M58*C57),0)","v":0},null,null,null,null,"от 200 мм до 250 мм (включительно)","от 200 мм до 250 мм (включительно)","от 200 мм до 250 мм (включительно)","от 200 мм до 250 мм (включительно)","от 200 мм до 250 мм (включительно)","от 200 мм до 250 мм (включительно)"]
[null,"Стоимость строительства участка №1, тыс.руб.:",null,null,{"$f":"IF(OR(C57=0,I58=0),\"-\",IF(OR(C53=R35,C53=R36,C53=R37),1,C57))","v":"-"},"х",{"$f":"IF(OR(C57=0,I58=0),\"-\",I58)","v":"-"},null,"=",null,{"$f":"IFERROR(IF(OR(C57=0,I58=0),\"-\",E59*G59),0)","v":"-"},null,null,null,null,null,"до 100 мм (включительно)"]
[null,null,null,null,null,null,null,null,null,null,null,null,null,null,null,null,"до 125 мм (включительно)"]
[null,"Участок 2",null,null,null,null,null,null,null,null,{"$f":"IF(OR(C53=R35,C53=R36,C53=R37),\"цена за 1 прокол\", \" \")","v":" "},null,null,null,null,null,"от 125 мм до 150 мм (включительно)"]
[null,"материал трубопровода:",null,null,null,null,null,null,null,null,null,null,{"$f":"IFERROR(IF(C64=0,0,VLOOKUP(C62,R31:AA38,IF(C64=S31,2,IF(C64=T31,3,IF(C64=U31,4,IF(C64=V31,5,IF(C64=W31,6,IF(C64=X31,7,IF(C64=Y31,8,IF(C64=Z31,9,IF(C64=AA31,10,0))))))))),FALSE)),0)","v":0},null,null,null,"от 100 мм до 150 мм (включительно)"]
[null,null,null,null,null,null,null,null,null,null,null,null,null,null,null,null,"от 100 мм до 160 мм (включительно)"]
[null,"диаметр трубопровода, мм",null,null,null,null,null,null,null,null,null,null,null,null,null,null,"от 150 мм до 200 мм (включительно)"]
[null,null,null,null,null,null,null,null,null,null,null,null,null,null,null,null,"от 160 мм до 200 мм (включительно)"]
[null,"протяженность, м",null,null,null,null,null,null,null,null,null,null,null,null,null,null,"от 200 мм до 250 мм (включительно)"]
[null,null,null,null,null,null,null,null,{"$f":"IFERROR(IF(OR(C62=0,C64=0,M62=0),0,VLOOKUP(C3,$R$109:$FN$364,M62,FALSE)),0)","v":0},null,{"$f":"IF(OR(C62=R35,C62=R36,C62=R37),L25,L24)","v":"тыс.руб./м."},null,{"$f":"IFERROR(IF(OR(C62=0,C64=0,M62=0),0,VLOOKUP($C$3,$R$109:$FN$364,M62,FALSE)),0)","v":0},{"$f":"IF(OR(C62=R35,C62=R36,C62=R37),M67,M67*C66)","v":0},null,null,"от 200 мм до 250 мм (включительно)"]
[null,"Стоимость строительства участка №2, тыс.руб.:",null,null,{"$f":"IF(OR(C66=0,I67=0),\"-\",IF(OR(C62=R35,C62=R36,C62=R37),1,C66))","v":"-"},"х",{"$f":"IF(OR(C66=0,I67=0),\"-\",I67)","v":"-"},null,"=",null,{"$f":"IFERROR(IF(OR(C66=0,I67=0),\"-\",E68*G68),0)","v":"-"}]
[]
[null,"Участок 3",null,null,null,null,null,null,null,null,{"$f":"IF(OR(C62=R35,C62=R36,C62=R37),\"цена за 1 прокол\", \" \")","v":" "}]
[null,"материал трубопровода:",null,null,null,null,null,null,null,null,null,null,{"$f":"IFERROR(IF(C73=0,0,VLOOKUP(C71,R31:AA38,IF(C73=S31,2,IF(C73=T31,3,IF(C73=U31,4,IF(C73=V31,5,IF(C73=W31,6,IF(C73=X31,7,IF(C73=Y31,8,IF(C73=Z31,9,IF(C73=AA31,10,0))))))))),FALSE)),0)","v":0},null,null,null,"Верхнеуфалейский городской округ"]
[null,null,null,null,null,null,null,null,null,null,null,null,null,null,null,null,"Златоустовский городской округ"]
[null,"диаметр трубопровода, мм",null,null,null,null,null,null,null,null,null,"до 100 мм (включительно)",null,null,null,null,"Карабашский городской округ"]
[null,null,null,null,null,null,null,null,null,null,null,null,null,null,null,null,"Копейский городской округ"]
[null,"протяженность, м",null,null,null,null,null,null,null,null,null,null,null,null,null,null,"Кыштымский городской округ"]
[null,null,null,null,null,null,null,null,{"$f":"IFERROR(IF(OR(C71=0,C73=0,M71=0),0,VLOOKUP(C3,$R$109:$FN$364,M71,FALSE)),0)","v":0},null,{"$f":"IF(OR(C71=R35,C71=R36,C71=R37),L25,L24)","v":"тыс.руб./м."},null,{"$f":"IF(OR(C71=0,C73=0,M71=0),0,VLOOKUP($C$3,$R$109:$FN$364,M71,FALSE))","v":0},{"$f":"IF(OR(C71=R35,C71=R36,C71=R37),M76,M76*C75)","v":0},null,null,"Магнитогорский городской округ"]
[null,"Стоимость строительства участка №3, тыс.руб.:",null,null,{"$f":"IF(OR(C75=0,I67=0),\"-\",IF(OR(C71=R35,C71=R36,C71=R37),1,C75))","v":"-"},"х",{"$f":"IF(OR(C75=0,I76=0),\"-\",I76)","v":"-"},null,"=",null,{"$f":"IFERROR(IF(OR(C75=0,I76=0),\"-\",E77*G77),0)","v":"-"},null,null,null,null,null,"Миасский городской округ"]
[null,null,null,null,null,null,null,null,null,null,null,0]
[null,null,null,null,null,null,null,null,null,null,null,null,null,null,null,null,"Троицкий городской округ"]
[null,null,null,null,null,null,null,null,null,null,null,null,null,null,null,null,"Усть-Катавский городской округ"]
[null,null,null,null,null,null,null,null,null,null,{"$f":"IF(OR(C71=R35,C71=R36,C71=R37),\"цена за 1 прокол\", \" \")","v":" "},null,"Расчет в индивидуальном порядке"]
[null,"Размер платы за подключение:",{"$f":"IF(OR(C10>250,G10>250),M81,N10+N21+N31+N43+N58+N67+N76)","v":0},null,null,null,null,null,"тыс. руб. (без учета НДС)",null,null,null,null,null,null,null,"Чебаркульский городской округ"]
[null,"ВНИМАНИЕ! Данные расчеты носят справочный характер и не могут являться окончательными для оплаты стоимости технологического присоединения. Калькулятор расчета платы за технологическое присоединение предназначен для расчета примерной стоимости размера платы за подключение к централизованным системам холодного водоснабжения и водоотведения организаций водопроводно-канализационного хозяйства, осуществляющих регулируемую деятельность на территории Челябинской области.",null,null,null,null,null,null,null,null,null,null,null,null,null,null,"Челябинский городской округ",null,null,null,null,null,null,null,null,null,null,null,null,null,null,"МУП «Производственное объединение водоснабжения и водоотведения» г.о. Челябинск"]
[null,null,null,null,null,null,null,null,null,null,null,null,null,null,null,null,"Южноуральский городской округ","Верхнеуфалейский городской округ","Златоустоустовский городской округ","Карабашский городской округ","Копейский городской округ","Кыштымский городской округ","Локомотивный городской округ","Магнитогорский городской округ","Миасский городской округ","Озерский городской округ","Снежинский городской округ","Трехгорный городской округ","Троицкий городской округ","Усть-Катавский городской округ","Чебаркульский городской округ","Челябинский городской округ","Южноуральский городской округ","Агаповский муниципальный район","Аргаяшский муниципальный район","Ашинский муниципальный район","Брединский муниципальный район","Варненский муниципальный район","Верхнеуральский муниципальный район","Еманжелинский муниципальный район","Еткульский муниципальный район","Карталинский муниципальный район","Каслинский муниципальный район","Катав-Ивановский муниципальный район","Кизильский муниципальный район","Коркинский муниципальный района","Красноармейский муниципальный район","Кунашакский муниципальный район","Кусинский муниципальный район","Нагайбакский муниципальный район","Нязепетровский муниципальный район","Октябрьский муниципальный район","Пластовский муниципальный район","Саткинский муниципальный район","Сосновский муниципальный район","Троицкий муниципальный район","Увельский муниципальный район","Уйский муниципальный район","Чебаркульский муниципальный район","Чесменский муниципальный район"]
[null,null,null,null,null,null,null,null,null,null,null,null,null,null,null,null,"Озерский городской округ","МУП \"Многопрофильное производственное объединение\" Водоканал ","АО \"Златмаш\"                        ","МУП \"ККП\"","МУП \"ПОВВ\" на территории Копейского городского округа","ЗАО \"Кыштымский медеэлектролитный завод\"","МУП \"ЖКХ\" ЗАТО Локомотивный городской округ","МП трест \"Водоканал\"","Акционерное общество \"ТРАНСНЕФТЬ-УРАЛ\"","ММПКХ","АО \"Трансэнерго\"","МУП \"Многоотраслевое производственное объединение энергосетей\" города Трехгорного ","Общество с ограниченной ответственностью \"Троицкий Водоканал водоснабжение\"","АО \"ГКНПЦ им. М.В. Хруничева\" - филиал \"УКВЗ им. С.М. Кирова\"","ГУП Челябинской области Пансионат с лечением \"Карагайский Бор\"","МУП \"ПОВВ\" на территории Челябинского городского окурга","Общество с ограниченной ответственностью \"ВОДООТВЕДЕНИЕ ПЛЮС\"","МП ЖКХ \"Агаповское\"","Аргаяшское МУПВКХ","МУП \"Ашинское коммунальное хозяйство\"","МХО-ООО \"Коммунальщик\"","МУП \"Варненское ЖКО\" ","МУП \"Родник\"","МП \"УК ЖКХ\" ","МУП ЖКХ Коелга","МУП \"ЖКХ\" Великопетровского сельского поселения","ГСУССЗН \"Черкаскульский психоневрологический интернат\"","ЗАО \"Катавский цемент\"      ","Муниципальное унитарное предприятие жилищно-коммунального хозяйства \"Гранитное\"","МУП \"ПОВВ\" на территории Коркинского и Розинского городских поселений ","МУП \"Гарант\"","МУП \"КунашакСервис\"","ООО \"Горводоканал\"","МУП \"Арсинское ЖКХ\"","МУП \"Водоканал\"","МУП \"Каракульский жилкомсервис\"                  ","ООО \"Водоотведение\"","ГСУССЗН \"Саткинский психоневрологический интернат\" ","ООО \"Жилищная эксплуатационная компания\" ","МУП Скалистское ЖКХ \"Троицко-совхозное сельское поселение\"","ЗАО КХП \"Злак\"","МУП \"Жилищно-коммунальное хозяйство Уйское\" ","ООО \"Жилищный сервис\"","Общество с ограниченной ответственностью \"ЧЕСМЕНСКОЕ УПРАВЛЕНИЕ КОММУНАЛЬНОГО ХОЗЯЙСТВА\""]
[null,null,null,null,null,null,null,null,null,null,null,null,null,null,null,null,"Локомотивный городской округ","МУП \"Ресурс-Н\"","МУП \"Водоснабжение ЗГО\"","ФГБУ \"ЦЖКУ\" МИНОБОРОНЫ РОССИИ","АО \"Завод Пластмасс\"   ","МУП КГО \"Кыштымводоканал\"",null,"ОАО \"Магнитогорский метизно-калибровочный завод \"ММК-МЕТИЗ\"","АО \"ГРЦ Макеева\"","ММУП ЖКХ ","МКП \"Энергетик\"","ФГБУ \"ЦЖКУ\" МИНОБОРОНЫ РОССИИ","ОБЩЕСТВО С ОГРАНИЧЕННОЙ ОТВЕТСТВЕННОСТЬЮ \"ВОДОСНАБЖЕНИЕ И ВОДООТВЕДЕНИЕ\"","ООО «Городской очистной комплекс»","ОАО \"Уральская кузница\"","ООО Индустриальный Парк \"Станкомаш\"","Общество с ограниченной ответственностью \"ВОДОСНАБЖЕНИЕ ПЛЮС\"","МП ЖКХ \"Желтинское\"       ","ГБОУС ПО (ССУЗ) \"Аргаяшский аграрный техникум\"                                          ","Акционерное общество \"ТРАНСНЕФТЬ-УРАЛ\"","ООО \"АКВА ЖКХ\" ","МУП \"ЖКХ\" Новоуральского сельского поселения ","МУП \"Благоустройство\"","ООО \"Вега\"","ООО \"Е Р В\"","МУП \"ЖКХ\" Еленинского сельского поселения","ООО \"Водоканал\"","МУП \"Теплоэнерго\"                ","ООО \"Квартирный вопрос\"","ООО УК «Вертикаль+»","МУП ЖКХ \"Шумовское\" ","Южно-Уральская дирекция по тепловодоснабжению - филиал ОАО \"РЖД\" ","ООО \"Тепловые сети\"","МУП \"Кассельское ЖКХ\"","МУП \"Исток\"","МУП \"Кочердыкское ЖКХ\"","ООО \"Водоснабжение\" ","ДИ \"Синегорье\" ","МУП \"Кременкульские коммунальные системы\"  ","Общество с ограниченной ответственностью \"Уральская Водоснабжающая Компания-2\"","МУП \"Кичигинское ЖКХ\"","ООО \"Вода\"","ООО \"КундравыКом\"  ","ООО \"Атлант\""]
[null,null,null,null,null,null,null,null,null,null,null,null,null,null,null,null,"Снежинский городской округ","ООО \"МетМашУфалей\" ","ООО \"Златоустовский \"ВОДОКАНАЛ\" ",null,"ООО \"Квартал-Сервис\"","ООО \"Кыштымводоканал\"",null,"ООО \"МагХолод\"","ОАО \"Миассводоканал\" ","ООО \"Сервисный Центр\"",null,"ФГУП \"Приборостроительный завод\" ","Общество с ограниченной ответственностью \"Троицкий Водоканал водоотведение\"","Южно-Уральская дирекция по тепловодоснабжению - филиал ОАО \"РЖД\" ","МУП «Водопроводное хозяйство»","Акционерное общество \"Энергосетевая Компания ЧТПЗ\"",null,"МУП «На торговой»","МУ \"Управление Байрамгуловского ЖКХ\"","ОАО \"РЖД\" (Куйбышевская дирекция по тепловодоснабжению – филиал ОАО \"РЖД\")","ООО \"БредыАгроСервис\"","ООО \"Жилком\" ","МУП Спасского сельского поселения \"КомуналСервис\"","Южно-Уральская дирекция по тепловодоснабжению - филиал ОАО \"РЖД\" ","ООО \"Сфера\" ","МУП \"ЖКХ\" Полтавского сельского поселения","МУП \"БЖЭК\"","ООО \"Катав-Ивановский литейный завод\"","ООО \"Станица\" ",null,"ООО \"Бродокалмакское ЖКХ\"",null,null,"МУП \"Остроленское ЖКХ\"","ООО \"Энергомонтажсервис\" ","МУП \"Маякское ЖКХ\"",null,"МУП \"Водоканал Сервис\" ","Общество с ограниченной ответственностью \"ЮЖУРАЛВОДОКАНАЛ\" ","ООО \"Белозерское ЖКХ №2\" ","МУП \"Коммунальные услуги\"","МУП \"Водоснабжение\" ","ООО \"ТеплоЭнергоРесурс\" ","ООО \"СтройТеплоСервис\"                                            "]
[null,null,null,null,null,null,null,null,null,null,null,null,null,null,null,null,"Трехгорный городской округ","Южно-Уральская дирекция по тепловодоснабжению - филиал ОАО \"РЖД\" ","Южно-Уральская дирекция по тепловодоснабжению - филиал ОАО \"РЖД\" ",null,"Публичное акционерное общество \"ПТИЦЕФАБРИКА ЧЕЛЯБИНСКАЯ\"","ООО \"Тайгинский ГОК\" ",null,"ООО \"МСК\"","ОАО \"ЭнСер\"                         ","ФГУП ПО \"Маяк\" ",null,null,"ООО \"Троицкгильза\"",null,"Общество с ограниченной ответственностью \"Евродвор\"                                                  ","АО \"Челябинское авиапредприятие\"",null,"МУП \"Черниговское ЖКХ\"             ","МУ \"Управление Дербишевского ЖКХ\"","Общество с ограниченной ответственностью \"МИНЬЯРВОДОКАНАЛ-СЕРВИС\"","ООО \"Источник\" ",null,"ООО \"Веста\" ",null,"ООО УК \"Управляющая компания\"","ООО \"Жилищно-коммунальное хозяйство \"Партнер\" ","МУП \"Булзинский ЭУЖКХ\"","ООО \"Энергосервис\"","ООО ЖКХ \"Кизильское\" ",null,"ООО \"Луговское\"",null,null,"ООО «Гумбейское ЖКХ»","ООО \"Энергосервис\"  ","МУП \"Октябрьский групповой водопровод\"",null,"МУП «Теплосервис»","ООО \"ВодТрансСервис\"","ООО \"Индустрия\"","МУП \"Красносельское ЖКХ\"","ООО \"Мирненское ЖЭУ\"","МУП «ЧРКС»","ООО «Водоканал»"]
[null,null,null,null,null,null,null,null,null,null,null,null,null,null,null,null,"Агаповский муниципальный район",null,null,null,null,"ФКУЗ Санаторий \"Лесное озеро\" МВД России\"             ",null,"ООО \"Управляющая компания «Западный-1\"","Общество с ограниченной ответственностью \"Интернешенел Билдинг Констракшен\"",null,null,null,"МУП «Электротепловые сети»",null,"МУП «Канализационное хозяйство»","АО \"Сигнал\"",null,"Общество с ограниченной ответственностью \"ЖКХ Горный\"","МУ \"Управление Ишалинского ЖКХ\" ","ООО \"Городские очистные сооружения\"","ООО \"Чистый родник\"",null,"ИП Валенкова Т.А.",null,null,"ООО \"ЖКХ Гарант плюс\"","МУП \"Жилищно-комунальный трест\"с. Тюбук",null,"ООО ЖКХ \"Шанс\"",null,"ООО \"Октябрьское\"",null,null,"Общество с ограниченной ответственностью \"ВЕКТОР\" пос. Южный",null,"ООО \"Октябрьское\"",null,"ОАО \"Комбинат \"Магнезит\"","ООО \"Вознесенское ЖКХ\"","ООО \"Новые коммунальные системы-Троицк\"","ОАО \"Санаторий Урал\" ",null,"ООО УК \"КвадроИнвест\""]
[null,null,null,null,null,null,null,null,null,null,null,null,null,null,null,null,"Аргаяшский муниципальный район",null,null,null,null,null,null,"ПАО \"ММК\" ","ООО \"Золотой пляж\" ",null,null,null,"Троицкая ГРЭС филиал ПАО \"ОГК-2\" ",null,"ФГБУ \"ЦЖКУ\" МИНОБОРОНЫ РОССИИ","АО «Энсер»",null,"ООО \"Вертикаль\" ","МУ \"Управление Камышевского ЖКХ\"","ООО \"Кропачевский жилищно-коммунальный сервис\"               ","ООО УК \"Андреевская-ЖКС\"                      ",null,"ООО \"Станица\" ",null,null,"ООО ЮУТЭК «ТеплоСервис» ","МУП \"ЖКХ Шабурово\"",null,null,null,"МУП ЖКХ «Северное»",null,null,"ООО \"Парижское ЖКХ\" ",null,null,null,"ОАО \"Энергосистемы\"         ","ООО \"Жил-Сервис\"","ООО \"Районные тепловые сети\"","ООО \"Каменское ЖКХ\"",null,"ООО «ФилимоноКом»"]
[null,null,null,null,null,null,null,null,null,null,null,null,null,null,null,null,"Ашинский муниципальный район",null,null,null,null,null,null,"Федеральное казенное учреждение \"Исправительная колония № 18 Главного управления Федеральной службы исполнения наказаний по Челябинской области\" ","ЧУ \"детский оздоровительный лагерь \"Еланчик\" ОАО \"ЧТПЗ\"",null,null,null,"ФГБУ \"ЦЖКУ\" МИНОБОРОНЫ РОССИИ",null,null,"ЗАО Фирма \"Инженерные сети\"",null,"ООО \"ЖКХ Агаповское\"             ","МУ \"Управление Норкинского ЖКХ\"","ООО \"Симский водоканал\" ",null,null,"УМП \"Малахит\"",null,null,null,"ООО \"ВКС\"",null,null,null,"Южно-Уральская дирекция по тепловодоснабжению - филиал ОАО \"РЖД\" ",null,null,null,null,null,null,"ООО \"Водоотведение\"","ООО \"Здоровый дух\"","ООО \"Родниковское ЖКХ\"        ","ООО \"Рождественское ЖКХ\"",null,"ФГБУ \"ЦЖКУ\" МИНОБОРОНЫ РОССИИ"]
[null,null,null,null,null,null,null,null,null,null,null,null,null,null,null,null,"Брединский муниципальный район",null,null,null,null,null,null,"АО \"Международный аэропорт Магнитогорск\"","Южно-Уральская дирекция по тепловодоснабжению - филиал ОАО \"РЖД\"",null,null,null,null,null,null,"ОАО \"Энергопром - Челябинский электродный завод\" ",null,"ООО \"Приморский водоканал\"","МУ \"Управление Яраткуловского ЖКХ\"","ООО \"Теплоэнергетика\"",null,null,"Федеральное казенное учреждение \"Исправительная колония № 18 Главного управления Федеральной службы исполнения наказанийпо Челябинской области\"",null,null,null,"ООО ЖРСП \"Старт\" ",null,null,null,null,null,null,null,null,null,null,"ООО \"ЖКХ\" п. Сулея                ","ООО \"Комфорт\"  ","ООО \"Управляющая компания\"","ООО \"Мордвиновское ЖКХ\"",null,"Южно-Уральская дирекция по тепловодоснабжению - филиал ОАО \"РЖД\" "]
[null,null,null,null,null,null,null,null,null,null,null,null,null,null,null,null,"Варненский муниципальный район",null,null,null,null,null,null,"Южно-Уральская дирекция по тепловодоснабжению - филиал ОАО \"РЖД\" ","ФКУ \"Государственное учреждение по формирование Государственного фонда драгоценных металлов и драгоценных камней РФ, хранению, отпуску и использованию драгоценных металлов и драгоценных камней (Гохран России) при Министерстве финансов Российской Федерации\"             ",null,null,null,null,null,null,"ООО \"Водопроводная компания\"",null,null,"МУ Управление Худайбердинского ЖКХ","Южно-Уральская дирекция по тепловодоснабжению - филиал ОАО \"РЖД\" ",null,null,null,null,null,null,"Южно-Уральская дирекция по тепловодоснабжению - филиал ОАО \"РЖД\" ",null,null,null,null,null,null,null,null,null,null,"ООО \"КОНиС-1\"                      ","ООО \"Соколиная гора\" ","ООО \"Целинное ЖКХ\"                ","ООО \"Петровское ЖКХ\""]
[null,null,null,null,null,null,null,null,null,null,null,null,null,null,null,null,"Верхнеуральский муниципальный район",null,null,null,null,null,null,null,null,null,null,null,null,null,null,"ООО \"СИТИ-ПАРК-Энерго\"  ",null,null,"ООО «Жилтехсервис»",null,null,null,null,null,null,null,null,null,null,null,null,null,null,null,null,null,null,"ООО \"Транстепло\" ","МУП \"ЖКХ Солнечное\"                           ","ООО \"МАКС\"","ООО \"Половинское ЖКХ\""]
[null,null,null,null,null,null,null,null,null,null,null,null,null,null,null,null,"Еманжелинский муниципальный район",null,null,null,null,null,null,null,null,null,null,null,null,null,null,"ООО \"Уралавтоприцеп\"",null,null,"МУП \"Управление Губернского ЖКХ Кузнецкого сельского поселения\"  ",null,null,null,null,null,null,null,null,null,null,null,null,null,null,null,null,null,null,"ООО \"УРАЛЭНЕРГОГРУПП\"","ООО УК \"АККТиВ\"","МУП «Дробышевское ЖКХ» ","ООО \"Пром-тепло\""]
[null,null,null,null,null,null,null,null,null,null,null,null,null,null,null,null,"Еткульский муниципальный район",null,null,null,null,null,null,null,null,null,null,null,null,null,null,"АО \"ЦАР\"",null,null,"ООО МЦМиР \"Курорт Увильды\"",null,null,null,null,null,null,null,null,null,null,null,null,null,null,null,null,null,null,null,"Южно-Уральская дирекция по тепловодоснабжению - филиал ОАО \"РЖД\" ","ФГКУ Комбинат \"Уральский\" Росрезерва","МУП «Жилищно-коммунальные услуги»"]
[null,null,null,null,null,null,null,null,null,null,null,null,null,null,null,null,"Карталинский муниципальный район",null,null,null,null,null,null,null,null,null,null,null,null,null,null,"Общество с ограниченной ответственностью \"ЮЖУРАЛВОДОКАНАЛ\" ",null,null,"Южно-Уральская дирекция по тепловодоснабжению - филиал ОАО \"РЖД\" ",null,null,null,null,null,null,null,null,null,null,null,null,null,null,null,null,null,null,null,null,null,"ООО \"Хуторское ЖКХ\""]
[null,null,null,null,null,null,null,null,null,null,null,null,null,null,null,null,"Каслинский муниципальный район",null,null,null,null,null,null,null,null,null,null,null,null,null,null,"ПАО \"ФОРТУМ\"",null,null,null,null,null,null,null,null,null,null,null,null,null,null,null,null,null,null,null,null,null,null,null,null,"ФГБУ \"ЦЖКУ\" МИНОБОРОНЫ РОССИИ"]
[null,null,null,null,null,null,null,null,null,null,null,null,null,null,null,null,"Катав-Ивановский муниципальный район",null,null,null,null,null,null,null,null,null,null,null,null,null,null,"ПАО \"Челябинский завод профилированного стального настила\""]
[null,null,null,null,null,null,null,null,null,null,null,null,null,null,null,null,"Кизильский муниципальный район",null,null,null,null,null,null,null,null,null,null,null,null,null,null,"ПАО \"Челябинский металлургический комбинат\""]
[null,null,null,null,null,null,null,null,null,null,null,null,null,null,null,null,null,null,null,null,null,null,null,null,null,null,null,null,null,null,null,"ФГБУ \"ЦЖКУ\" МИНОБОРОНЫ РОССИИ"]
[null,null,null,null,null,null,null,null,null,null,null,null,null,null,null,null,null,null,null,null,null,null,null,null,null,null,null,null,null,null,null,"Южно-Уральская дирекция по тепловодоснабжению - филиал ОАО \"РЖД\" "]
[null,null,null,null,null,null,null,null,null,null,null,null,null,null,null,null,"Коркинский муниципальный район"]
[null,null,null,null,null,null,null,null,null,null,null,null,null,null,null,null,null,null,null,null,"полиэтиленовые трубы ",null,null,null,null,null,null,null,null,null,null,null,null,null,null,null,null,null,null,null,null,null,null,null,null,null,null,null,null,null,null,null,null,null,null,null,null,null,null,null,null,null,null,null,"чугунные трубы ",null,null,null,null,null,null,null,null,null,null,null,null,null,null,null,null,null,null,null,null,null,null,null,"стальные трубы ",null,null,null,null,null,null,null,null,null,null,null,null,null,null,null,null,null,null,null,null,null,null,null,null,null,null,null,null,null,null,null,null,null,null,null,null,null,null,null,"прокол сети водоснабжения ",null,null,null,null,null,null,null,null,null,null,null,null,null,null,null,null,null,null,null,null,null,null,null,null,null,null,null,null,null,"прокол сети водоотведения "]
[null,null,null,null,null,null,null,null,null,null,null,null,null,null,null,null,null,null,null,null,"водопроводная сеть - полиэтиленовые трубы",null,null,null,null,null,null,null,null,null,null,null,"канализационная сеть",null,null,null,"прокладка сети из полиэтиленовых труб в стальном футляре",null,null,null,null,null,null,null,null,null,null,null,"прокладка сети из полиэтиленовых труб в стальном футляре",null,null,null,"водовод - полиэтиленовые трубы",null,null,null,null,null,null,null,null,null,null,null,"водопроводная сеть - чугунные напорные раструбные трубы",null,null,null,null,null,null,null,null,null,"канализационная сеть",null,null,null,"водовод - чугунные напорные раструбные трубы с заделкой раструбов резиновыми уплотнительными манжетами",null,null,null,null,null,null,null,null,null,"водопроводная сеть - стальные трубы",null,null,null,null,null,null,null,null,null,null,null,"канализационная сеть",null,null,null,"прокладка сети в стальном футляре",null,null,null,null,null,null,null,null,null,null,null,"водовод - стальные трубы",null,null,null,null,null,null,null,null,null,null,null,"прокол сети водоснабжения на длину до 10 м глубиной 3 м",null,null,null,null,null,null,null,null,null,"прокол сети водоснабжения на длину до 30 м глубиной 3 м",null,null,null,null,null,null,null,null,null,"прокол сети водоснабжения на длину до 50 м глубиной 3 м",null,null,null,null,null,null,null,null,null,"на длину  до 10 м глубиной 3 м",null,null,null,"на длину  до 30 м глубиной 3 м",null,null,null,"на длину  до 50 м глубиной 3 м",null,null,null,"водопроводная сеть - полиэтиленовые трубы"]
[null,null,null,null,null,null,null,null,null,null,null,null,null,null,null,null,null,null,"Ставка тарифа за подключаемую нагрузку водопроводной сети",null,"1 нитка","2 нитки","1 нитка","2 нитки","1 нитка","2 нитки","1 нитка","2 нитки","1 нитка","2 нитки","1 нитка","2 нитки",null,null,null,null,"1 нитка","2 нитки","1 нитка","2 нитки","1 нитка","2 нитки","1 нитка","2 нитки","1 нитка","2 нитки","1 нитка","2 нитки",null,null,null,null,"1 нитка","2 нитки","1 нитка","2 нитки","1 нитка","2 нитки","1 нитка","2 нитки","1 нитка","2 нитки","1 нитка","2 нитки","1 нитка","2 нитки","1 нитка","2 нитки","1 нитка","2 нитки","1 нитка","2 нитки","1 нитка","2 нитки",null,null,null,null,"1 нитка","2 нитки","1 нитка","2 нитки","1 нитка","2 нитки","1 нитка","2 нитки","1 нитка","2 нитки","1 нитка","2 нитки","1 нитка","2 нитки","1 нитка","2 нитки","1 нитка","2 нитки","1 нитка","2 нитки","1 нитка","2 нитки",null,null,null,null,"1 нитка","2 нитки","1 нитка","2 нитки","1 нитка","2 нитки","1 нитка","2 нитки","1 нитка","2 нитки","1 нитка","2 нитки","1 нитка","2 нитки","1 нитка","2 нитки","1 нитка","2 нитки","1 нитка","2 нитки","1 нитка","2 нитки","1 нитка","2 нитки","1 нитка","2 нитки","1 нитка","2 нитки","1 нитка","2 нитки","1 нитка","2 нитки","1 нитка","2 нитки","1 нитка","2 нитки","1 нитка","2 нитки","1 нитка","2 нитки","1 нитка","2 нитки","1 нитка","2 нитки","1 нитка","2 нитки","1 нитка","2 нитки","1 нитка","2 нитки","1 нитка","2 нитки","1 нитка","2 нитки",null,null,null,null,null,null,null,null,null,null,null,null,"1 нитка","2 нитки","1 нитка","2 нитки"]
[null,null,null,null,null,null,null,null,null,null,null,null,null,null,null,null,"Красноармейский муниципальный район",null,"водопроводной сети","канализационной сети","менее 70 мм (включительно)","менее 70 мм (включительно)","от 70 мм до 100 мм (включительно)","от 70 мм до 100 мм (включительно)","от 100 мм до 125 мм (включительно)","от 100 мм до 125 мм (включительно)","от 125 мм до 150 мм (включительно)","от 125 мм до 150 мм (включительно)","от 150 мм до 200 мм (включительно)","от 150 мм до 200 мм (включительно)","от 200 мм до 250 мм (включительно)","от 200 мм до 250 мм (включительно)","до 100 мм (включительно)","от 100 мм до 160 мм (включительно)","от 160 мм до 200 мм (включительно)","от 200 мм до 250 мм (включительно)","менее 70 мм (включительно)","менее 70 мм (включительно)","от 70 мм до 100 мм (включительно)","от 70 мм до 100 мм (включительно)","от 100 мм до 125 мм (включительно)","от 100 мм до 125 мм (включительно)","от 125 мм до 150 мм (включительно)","от 125 мм до 150 мм (включительно)","от 150 мм до 200 мм (включительно)","от 150 мм до 200 мм (включительно)","от 200 мм до 250 мм (включительно)","от 200 мм до 250 мм (включительно)","до 125 мм (включительно)","от 125 мм до 150 мм (включительно)","от 150 мм до 200 мм (включительно)","от 200 мм до 250 мм (включительно)","менее 70 мм (включительно)","менее 70 мм (включительно)","от 70 мм до 100 мм (включительно)","от 70 мм до 100 мм (включительно)","от 100 мм до 125 мм (включительно)","от 100 мм до 125 мм (включительно)","от 125 мм до 150 мм (включительно)","от 125 мм до 150 мм (включительно)","от 150 мм до 200 мм (включительно)","от 150 мм до 200 мм (включительно)","от 200 мм до 250 мм (включительно)","от 200 мм до 250 мм (включительно)","менее 70 мм (включительно)","менее 70 мм (включительно)","от 70 мм до 100 мм (включительно)","от 70 мм до 100 мм (включительно)","от 100 мм до 150 мм (включительно)","от 100 мм до 150 мм (включительно)","от 150 мм до 200 мм (включительно)","от 150 мм до 200 мм (включительно)","от 200 мм до 250 мм (включительно)","от 200 мм до 250 мм (включительно)","до 100 мм (включительно)","от 100 мм до 150 мм (включительно)","от 150 мм до 200 мм (включительно)","от 200 мм до 250 мм (включительно)","менее 70 мм (включительно)","менее 70 мм (включительно)","от 70 мм до 100 мм (включительно)","от 70 мм до 100 мм (включительно)","от 100 мм до 150 мм (включительно)","от 100 мм до 150 мм (включительно)","от 150 мм до 200 мм (включительно)","от 150 мм до 200 мм (включительно)","от 200 мм до 250 мм (включительно)","от 200 мм до 250 мм (включительно)","менее 70 мм (включительно)","менее 70 мм (включительно)","от 70 мм до 100 мм (включительно)","от 70 мм до 100 мм (включительно)","от 100 мм до 125 мм (включительно)","от 100 мм до 125 мм (включительно)","от 125 мм до 150 мм (включительно)","от 125 мм до 150 мм (включительно)","от 150 мм до 200 мм (включительно)","от 150 мм до 200 мм (включительно)","от 200 мм до 250 мм (включительно)","от 200 мм до 250 мм (включительно)","до 100 мм (включительно)","от 100 мм до 150 мм (включительно)","от 150 мм до 200 мм (включительно)","от 200 мм до 250 мм (включительно)","менее 70 мм (включительно)","менее 70 мм (включительно)","от 70 мм до 100 мм (включительно)","от 70 мм до 100 мм (включительно)","от 100 мм до 125 мм (включительно)","от 100 мм до 125 мм (включительно)","от 125 мм до 150 мм (включительно)","от 125 мм до 150 мм (включительно)","от 150 мм до 200 мм (включительно)","от 150 мм до 200 мм (включительно)","от 200 мм до 250 мм (включительно)","от 200 мм до 250 мм (включительно)","менее 70 мм (включительно)","менее 70 мм (включительно)","от 70 мм до 100 мм (включительно)","от 70 мм до 100 мм (включительно)","от 100 мм до 125 мм (включительно)","от 100 мм до 125 мм (включительно)","от 125 мм до 150 мм (включительно)","от 125 мм до 150 мм (включительно)","от 150 мм до 200 мм (включительно)","от 150 мм до 200 мм (включительно)","от 200 мм до 250 мм (включительно)","от 200 мм до 250 мм (включительно)","менее 70 мм (включительно)","менее 70 мм (включительно)","от 70 мм до 100 мм (включительно)","от 70 мм до 100 мм (включительно)","от 100 мм до 125 мм (включительно)","от 100 мм до 125 мм (включительно)","от 150 мм до 200 мм (включительно)","от 150 мм до 200 мм (включительно)","от 200 мм до 250 мм (включительно)","от 200 мм до 250 мм (включительно)","менее 70 мм (включительно)","менее 70 мм (включительно)","от 70 мм до 100 мм (включительно)","от 70 мм до 100 мм (включительно)","от 100 мм до 125 мм (включительно)","от 100 мм до 125 мм (включительно)","от 150 мм до 200 мм (включительно)","от 150 мм до 200 мм (включительно)","от 200 мм до 250 мм (включительно)","от 200 мм до 250 мм (включительно)","менее 70 мм (включительно)","менее 70 мм (включительно)","от 70 мм до 100 мм (включительно)","от 70 мм до 100 мм (включительно)","от 100 мм до 125 мм (включительно)","от 100 мм до 125 мм (включительно)","от 150 мм до 200 мм (включительно)","от 150 мм до 200 мм (включительно)","от 200 мм до 250 мм (включительно)","от 200 мм до 250 мм (включительно)","до 100 мм (включительно)","от 100 мм до 150 мм (включительно)","от 150 мм до 200 мм (включительно)","от 200 мм до 250 мм (включительно)","до 100 мм (включительно)","от 100 мм до 150 мм (включительно)","от 150 мм до 200 мм (включительно)","от 200 мм до 250 мм (включительно)","до 100 мм (включительно)","от 100 мм до 150 мм (включительно)","от 150 мм до 200 мм (включительно)","от 200 мм до 250 мм (включительно)","менее 40 мм (включительно)","менее 40 мм (включительно)","от 40 мм до 70 мм (включительно)","от 40 мм до 70 мм (включительно)"]
[null,null,null,null,null,null,null,null,null,null,null,null,null,null,null,null,"Кунашакский муниципальный район",1,2,3,4,5,6,7,8,9,10,11,12,13,14,15,16,17,18,19,20,21,22,23,24,25,26,27,28,29,30,31,32,33,34,35,36,37,38,39,40,41,42,43,44,45,46,47,48,49,50,51,52,53,54,55,56,57,58,59,60,61,62,63,64,65,66,67,68,69,70,71,72,73,74,75,76,77,78,79,80,81,82,83,84,85,86,87,88,89,90,91,92,93,94,95,96,97,98,99,100,101,102,103,104,105,106,107,108,109,110,111,112,113,114,115,116,117,118,119,120,121,122,123,124,125,126,127,128,129,130,131,132,133,134,135,136,137,138,139,140,141,142,143,144,145,146,147,148,149,150,151,152,153,154,155,156,157]
[null,null,null,null,null,null,null,null,null,null,null,null,null,null,null,null,"Кусинский муниципальный район","МУП \"Многопрофильное производственное объединение\" Водоканал ",0.318,0.252,3.14,5.12,3.44,5.61,3.65,5.95,3.74,6.1,3.87,6.31,4.28,6.98,4.75,4.47,4.2,3.92]
[null,null,null,null,null,null,null,null,null,null,null,null,null,null,null,null,"Нагайбакский муниципальный район","МУП \"Ресурс-Н\"",{"$f":"$S$109","v":0.318},{"$f":"$T$109","v":0.252},{"$f":"$U$109","v":3.14},{"$f":"$V$109","v":5.12},{"$f":"$W$109","v":3.44},{"$f":"$X$109","v":5.61},{"$f":"$Y$109","v":3.65},{"$f":"$Z$109","v":5.95},{"$f":"$AA$109","v":3.74},{"$f":"$AB$109","v":6.1},{"$f":"$AC$109","v":3.87},{"$f":"$AD$109","v":6.31},{"$f":"$AE$109","v":4.28},{"$f":"$AF$109","v":6.98},{"$f":"$AG$109","v":4.75},{"$f":"$AH$109","v":4.47},{"$f":"$AI$109","v":4.2},{"$f":"$AJ$109","v":3.92}]
[null,null,null,null,null,null,null,null,null,null,null,null,null,null,null,null,"Нязепетровский муниципальный район","ООО \"МетМашУфалей\" ",{"$f":"$S$109","v":0.318},{"$f":"$T$109","v":0.252},{"$f":"$U$109","v":3.14},{"$f":"$V$109","v":5.12},{"$f":"$W$109","v":3.44},{"$f":"$X$109","v":5.61},{"$f":"$Y$109","v":3.65},{"$f":"$Z$109","v":5.95},{"$f":"$AA$109","v":3.74},{"$f":"$AB$109","v":6.1},{"$f":"$AC$109","v":3.87},{"$f":"$AD$109","v":6.31},{"$f":"$AE$109","v":4.28},{"$f":"$AF$109","v":6.98},{"$f":"$AG$109","v":4.75},{"$f":"$AH$109","v":4.47},{"$f":"$AI$109","v":4.2},{"$f":"$AJ$109","v":3.92}]
[null,null,null,null,null,null,null,null,null,null,null,null,null,null,null,null,"Октябрьский муниципальный район","Южно-Уральская дирекция по тепловодоснабжению - филиал ОАО \"РЖД\" ",0.318,0.252,3.14,5.12,3.44,5.61,3.65,5.95,3.74,6.1,3.87,6.31,4.28,6.98,4.75,4.47,4.2,3.92]
[null,null,null,null,null,null,null,null,null,null,null,null,null,null,null,null,"Пластовский муниципальный район","АО \"Златмаш\"                        ",0.318,0.252,3.14,5.12,3.44,5.61,3.65,5.95,3.74,6.1,3.87,6.31,4.28,6.98,4.75,4.47,4.2,3.92]
[null,null,null,null,null,null,null,null,null,null,null,null,null,null,null,null,"Саткинский муниципальный район","МУП \"Водоснабжение ЗГО\"",0.318,0.252,3.14,5.12,3.44,5.61,3.65,5.95,3.74,6.1,3.87,6.31,4.28,6.98,4.75,4.47,4.2,3.92]
[null,null,null,null,null,null,null,null,null,null,null,null,null,null,null,null,"Сосновский муниципальный район","ООО \"Златоустовский \"ВОДОКАНАЛ\" ",0.318,0.252,3.14,5.12,3.44,5.61,3.65,5.95,3.74,6.1,3.87,6.31,4.28,6.98,4.75,4.47,4.2,3.92]
[null,null,null,null,null,null,null,null,null,null,null,null,null,null,null,null,"Троицкий муниципальный район","Южно-Уральская дирекция по тепловодоснабжению - филиал ОАО \"РЖД\" ",0.318,0.252,3.14,5.12,3.44,5.61,3.65,5.95,3.74,6.1,3.87,6.31,4.28,6.98,4.75,4.47,4.2,3.92]
[null,null,null,null,null,null,null,null,null,null,null,null,null,null,null,null,"Увельский муниципальный район","МУП \"ККП\"",0.318,0.252,3.14,5.12,3.44,5.61,3.65,5.95,3.74,6.1,3.87,6.31,4.28,6.98,4.75,4.47,4.2,3.92]
[null,null,null,null,null,null,null,null,null,null,null,null,null,null,null,null,"Уйский муниципальный район","ФГБУ \"ЦЖКУ\" МИНОБОРОНЫ РОССИИ",0.318,0.252,3.14,5.12,3.44,5.61,3.65,5.95,3.74,6.1,3.87,6.31,4.28,6.98,4.75,4.47,4.2,3.92]
[null,null,null,null,null,null,null,null,null,null,null,null,null,null,null,null,"Чебаркульский муниципальный район","АО \"Завод Пластмасс\"   ",0.318,0.252,3.14,5.12,3.44,5.61,3.65,5.95,3.74,6.1,3.87,6.31,4.28,6.98,4.75,4.47,4.2,3.92]
[null,null,null,null,null,null,null,null,null,null,null,null,null,null,null,null,"Чесменский муниципальный район","ООО \"Квартал-Сервис\"",0.318,0.252,3.14,5.12,3.44,5.61,3.65,5.95,3.74,6.1,3.87,6.31,4.28,6.98,4.75,4.47,4.2,3.92]
[null,null,null,null,null,null,null,null,null,null,null,null,null,null,null,null,null,"Публичное акционерное общество \"ПТИЦЕФАБРИКА ЧЕЛЯБИНСКАЯ\"",0.318,0.252,3.14,5.12,3.44,5.61,3.65,5.95,3.74,6.1,3.87,6.31,4.28,6.98,4.75,4.47,4.2,3.92]
[null,null,null,null,null,null,null,null,null,null,null,null,null,null,null,null,null,"ЗАО \"Кыштымский медеэлектролитный завод\"",0.318,0.252,3.14,5.12,3.44,5.61,3.65,5.95,3.74,6.1,3.87,6.31,4.28,6.98,4.75,4.47,4.2,3.92]
[null,null,null,null,null,null,null,null,null,null,null,null,null,null,null,null,null,"МУП КГО \"Кыштымводоканал\"",0.318,0.252,3.14,5.12,3.44,5.61,3.65,5.95,3.74,6.1,3.87,6.31,4.28,6.98,4.75,4.47,4.2,3.92]
[null,null,null,null,null,null,null,null,null,null,null,null,null,null,null,null,null,"ООО \"Кыштымводоканал\"",0.318,0.252,3.14,5.12,3.44,5.61,3.65,5.95,3.74,6.1,3.87,6.31,4.28,6.98,4.75,4.47,4.2,3.92]
[null,null,null,null,null,null,null,null,null,null,null,null,null,null,null,null,null,"ООО \"Тайгинский ГОК\" ",0.318,0.252,3.14,5.12,3.44,5.61,3.65,5.95,3.74,6.1,3.87,6.31,4.28,6.98,4.75,4.47,4.2,3.92]
[null,null,null,null,null,null,null,null,null,null,null,null,null,null,null,null,null,"ФКУЗ Санаторий \"Лесное озеро\" МВД России\"             ",0.318,0.252,3.14,5.12,3.44,5.61,3.65,5.95,3.74,6.1,3.87,6.31,4.28,6.98,4.75,4.47,4.2,3.92]
[null,null,null,null,null,null,null,null,null,null,null,null,null,null,null,null,null,"МУП \"ЖКХ\" ЗАТО Локомотивный городской округ",0.318,0.252,3.14,5.12,3.44,5.61,3.65,5.95,3.74,6.1,3.87,6.31,4.28,6.98,4.75,4.47,4.2,3.92]
[null,null,null,null,null,null,null,null,null,null,null,null,null,null,null,null,null,"ОАО \"Магнитогорский метизно-калибровочный завод \"ММК-МЕТИЗ\"",0.318,0.252,3.14,5.12,3.44,5.61,3.65,5.95,3.74,6.1,3.87,6.31,4.28,6.98,4.75,4.47,4.2,3.92]
[null,null,null,null,null,null,null,null,null,null,null,null,null,null,null,null,null,"ООО \"МагХолод\"",0.318,0.252,3.14,5.12,3.44,5.61,3.65,5.95,3.74,6.1,3.87,6.31,4.28,6.98,4.75,4.47,4.2,3.92]
[null,null,null,null,null,null,null,null,null,null,null,null,null,null,null,null,null,"ООО \"МСК\"",0.318,0.252,3.14,5.12,3.44,5.61,3.65,5.95,3.74,6.1,3.87,6.31,4.28,6.98,4.75,4.47,4.2,3.92]
[null,null,null,null,null,null,null,null,null,null,null,null,null,null,null,null,null,"ООО \"Управляющая компания \"Западный-1\"",0.318,0.252,3.14,5.12,3.44,5.61,3.65,5.95,3.74,6.1,3.87,6.31,4.28,6.98,4.75,4.47,4.2,3.92]
[null,null,null,null,null,null,null,null,null,null,null,null,null,null,null,null,null,"ПАО \"ММК\" ",0.318,0.252,3.14,5.12,3.44,5.61,3.65,5.95,3.74,6.1,3.87,6.31,4.28,6.98,4.75,4.47,4.2,3.92]
[null,null,null,null,null,null,null,null,null,null,null,null,null,null,null,null,null,"Федеральное казенное учреждение \"Исправительная колония № 18 Главного управления Федеральной службы исполнения наказаний по Челябинской области\" ",0.318,0.252,3.14,5.12,3.44,5.61,3.65,5.95,3.74,6.1,3.87,6.31,4.28,6.98,4.75,4.47,4.2,3.92]
[null,null,null,null,null,null,null,null,null,null,null,null,null,null,null,null,null,"АО \"Международный аэропорт Магнитогорск\"",0.318,0.252,3.14,5.12,3.44,5.61,3.65,5.95,3.74,6.1,3.87,6.31,4.28,6.98,4.75,4.47,4.2,3.92]
[null,null,null,null,null,null,null,null,null,null,null,null,null,null,null,null,null,"Южно-Уральская дирекция по тепловодоснабжению - филиал ОАО \"РЖД\" ",0.318,0.252,3.14,5.12,3.44,5.61,3.65,5.95,3.74,6.1,3.87,6.31,4.28,6.98,4.75,4.47,4.2,3.92]
[null,null,null,null,null,null,null,null,null,null,null,null,null,null,null,null,null,"Акционерное общество \"ТРАНСНЕФТЬ-УРАЛ\"",0.318,0.252,3.14,5.12,3.44,5.61,3.65,5.95,3.74,6.1,3.87,6.31,4.28,6.98,4.75,4.47,4.2,3.92]
[null,null,null,null,null,null,null,null,null,null,null,null,null,null,null,null,null,"АО \"ГРЦ Макеева\"",0.318,0.252,3.14,5.12,3.44,5.61,3.65,5.95,3.74,6.1,3.87,6.31,4.28,6.98,4.75,4.47,4.2,3.92]
[null,null,null,null,null,null,null,null,null,null,null,null,null,null,null,null,null,"ОАО \"Миассводоканал\" ",0.318,0.252,3.14,5.12,3.44,5.61,3.65,5.95,3.74,6.1,3.87,6.31,4.28,6.98,4.75,4.47,4.2,3.92]
[null,null,null,null,null,null,null,null,null,null,null,null,null,null,null,null,null,"ОАО \"ЭнСер\"                         ",0.318,0.252,3.14,5.12,3.44,5.61,3.65,5.95,3.74,6.1,3.87,6.31,4.28,6.98,4.75,4.47,4.2,3.92]
[null,null,null,null,null,null,null,null,null,null,null,null,null,null,null,null,null,"Общество с ограниченной ответственностью \"Интернешенел Билдинг Констракшен\"",0.318,0.252,3.14,5.12,3.44,5.61,3.65,5.95,3.74,6.1,3.87,6.31,4.28,6.98,4.75,4.47,4.2,3.92]
[null,null,null,null,null,null,null,null,null,null,null,null,null,null,null,null,null,"ООО \"Золотой пляж\" ",0.318,0.252,3.14,5.12,3.44,5.61,3.65,5.95,3.74,6.1,3.87,6.31,4.28,6.98,4.75,4.47,4.2,3.92]
[null,null,null,null,null,null,null,null,null,null,null,null,null,null,null,null,null,"ЧУ \"детский оздоровительный лагерь \"Еланчик\" ОАО \"ЧТПЗ\"",0.318,0.252,3.14,5.12,3.44,5.61,3.65,5.95,3.74,6.1,3.87,6.31,4.28,6.98,4.75,4.47,4.2,3.92]
[null,null,null,null,null,null,null,null,null,null,null,null,null,null,null,null,null,"Южно-Уральская дирекция по тепловодоснабжению - филиал ОАО \"РЖД\"",0.318,0.252,3.14,5.12,3.44,5.61,3.65,5.95,3.74,6.1,3.87,6.31,4.28,6.98,4.75,4.47,4.2,3.92]
[null,null,null,null,null,null,null,null,null,null,null,null,null,null,null,null,null,"ФКУ \"Государственное учреждение по формирование Государственного фонда драгоценных металлов и драгоценных камней РФ, хранению, отпуску и использованию драгоценных металлов и драгоценных камней (Гохран России) при Министерстве финансов Российской Федерации\"             ",0.318,0.252,3.14,5.12,3.44,5.61,3.65,5.95,3.74,6.1,3.87,6.31,4.28,6.98,4.75,4.47,4.2,3.92]
[null,null,null,null,null,null,null,null,null,null,null,null,null,null,null,null,null,"ММПКХ",0.318,0.252,3.14,5.12,3.44,5.61,3.65,5.95,3.74,6.1,3.87,6.31,4.28,6.98,4.75,4.47,4.2,3.92]
[null,null,null,null,null,null,null,null,null,null,null,null,null,null,null,null,null,"ММУП ЖКХ ",0.318,0.252,3.14,5.12,3.44,5.61,3.65,5.95,3.74,6.1,3.87,6.31,4.28,6.98,4.75,4.47,4.2,3.92]
[null,null,null,null,null,null,null,null,null,null,null,null,null,null,null,null,null,"ООО \"Сервисный Центр\"",0.318,0.252,3.14,5.12,3.44,5.61,3.65,5.95,3.74,6.1,3.87,6.31,4.28,6.98,4.75,4.47,4.2,3.92]
[null,null,null,null,null,null,null,null,null,null,null,null,null,null,null,null,null,"ФГУП ПО \"Маяк\" ",0.318,0.252,3.14,5.12,3.44,5.61,3.65,5.95,3.74,6.1,3.87,6.31,4.28,6.98,4.75,4.47,4.2,3.92]
[null,null,null,null,null,null,null,null,null,null,null,null,null,null,null,null,null,"МКП \"Энергетик\"",0.318,0.252,3.14,5.12,3.44,5.61,3.65,5.95,3.74,6.1,3.87,6.31,4.28,6.98,4.75,4.47,4.2,3.92]
[null,null,null,null,null,null,null,null,null,null,null,null,null,null,null,null,null,"ФГБУ \"ЦЖКУ\" МИНОБОРОНЫ РОССИИ",0.318,0.252,3.14,5.12,3.44,5.61,3.65,5.95,3.74,6.1,3.87,6.31,4.28,6.98,4.75,4.47,4.2,3.92]
[null,null,null,null,null,null,null,null,null,null,null,null,null,null,null,null,null,"ФГУП \"Приборостроительный завод\" ",0.318,0.252,3.14,5.12,3.44,5.61,3.65,5.95,3.74,6.1,3.87,6.31,4.28,6.98,4.75,4.47,4.2,3.92]
[null,null,null,null,null,null,null,null,null,null,null,null,null,null,null,null,null,"Общество с ограниченной ответственностью \"Троицкий Водоканал водоснабжение\"",0.318,0.252,3.14,5.12,3.44,5.61,3.65,5.95,3.74,6.1,3.87,6.31,4.28,6.98,4.75,4.47,4.2,3.92]
[null,null,null,null,null,null,null,null,null,null,null,null,null,null,null,null,null,"ОБЩЕСТВО С ОГРАНИЧЕННОЙ ОТВЕТСТВЕННОСТЬЮ \"ВОДОСНАБЖЕНИЕ И ВОДООТВЕДЕНИЕ\"",0.318,0.252,3.14,5.12,3.44,5.61,3.65,5.95,3.74,6.1,3.87,6.31,4.28,6.98,4.75,4.47,4.2,3.92]
[null,null,null,null,null,null,null,null,null,null,null,null,null,null,null,null,null,"Общество с ограниченной ответственностью \"Троицкий Водоканал водоотведение\"",0.318,0.252,3.14,5.12,3.44,5.61,3.65,5.95,3.74,6.1,3.87,6.31,4.28,6.98,4.75,4.47,4.2,3.92]
[null,null,null,null,null,null,null,null,null,null,null,null,null,null,null,null,null,"ООО \"Троицкгильза\"",0.318,0.252,3.14,5.12,3.44,5.61,3.65,5.95,3.74,6.1,3.87,6.31,4.28,6.98,4.75,4.47,4.2,3.92]
[null,null,null,null,null,null,null,null,null,null,null,null,null,null,null,null,null,"МУП \"Электротепловые сети\"",0.318,0.252,3.14,5.12,3.44,5.61,3.65,5.95,3.74,6.1,3.87,6.31,4.28,6.98,4.75,4.47,4.2,3.92]
[null,null,null,null,null,null,null,null,null,null,null,null,null,null,null,null,null,"Троицкая ГРЭС филиал ПАО \"ОГК-2\" ",0.318,0.252,3.14,5.12,3.44,5.61,3.65,5.95,3.74,6.1,3.87,6.31,4.28,6.98,4.75,4.47,4.2,3.92]
[null,null,null,null,null,null,null,null,null,null,null,null,null,null,null,null,null,"ФГБУ \"ЦЖКУ\" МИНОБОРОНЫ РОССИИ",0.318,0.252,3.14,5.12,3.44,5.61,3.65,5.95,3.74,6.1,3.87,6.31,4.28,6.98,4.75,4.47,4.2,3.92]
[null,null,null,null,null,null,null,null,null,null,null,null,null,null,null,null,null,"АО \"ГКНПЦ им. М.В. Хруничева\" - филиал \"УКВЗ им. С.М. Кирова\"",0.318,0.252,3.14,5.12,3.44,5.61,3.65,5.95,3.74,6.1,3.87,6.31,4.28,6.98,4.75,4.47,4.2,3.92]
[null,null,null,null,null,null,null,null,null,null,null,null,null,null,null,null,null,"ООО \"Городской очистной комплекс\"",0.318,0.252,3.14,5.12,3.44,5.61,3.65,5.95,3.74,6.1,3.87,6.31,4.28,6.98,4.75,4.47,4.2,3.92]
[null,null,null,null,null,null,null,null,null,null,null,null,null,null,null,null,null,"Южно-Уральская дирекция по тепловодоснабжению - филиал ОАО \"РЖД\" ",0.318,0.252,3.14,5.12,3.44,5.61,3.65,5.95,3.74,6.1,3.87,6.31,4.28,6.98,4.75,4.47,4.2,3.92]
[null,null,null,null,null,null,null,null,null,null,null,null,null,null,null,null,null,"ГУП Челябинской области Пансионат с лечением \"Карагайский Бор\"",0.318,0.252,3.14,5.12,3.44,5.61,3.65,5.95,3.74,6.1,3.87,6.31,4.28,6.98,4.75,4.47,4.2,3.92]
[null,null,null,null,null,null,null,null,null,null,null,null,null,null,null,null,null,"ОАО \"Уральская кузница\"",0.318,0.252,3.14,5.12,3.44,5.61,3.65,5.95,3.74,6.1,3.87,6.31,4.28,6.98,4.75,4.47,4.2,3.92]
[null,null,null,null,null,null,null,null,null,null,null,null,null,null,null,null,null,"МУП \"Водопроводное хозяйство\"",0.318,0.252,3.14,5.12,3.44,5.61,3.65,5.95,3.74,6.1,3.87,6.31,4.28,6.98,4.75,4.47,4.2,3.92]
[null,null,null,null,null,null,null,null,null,null,null,null,null,null,null,null,null,"Общество с ограниченной ответственностью \"Евродвор\"                                                  ",0.318,0.252,3.14,5.12,3.44,5.61,3.65,5.95,3.74,6.1,3.87,6.31,4.28,6.98,4.75,4.47,4.2,3.92]
[null,null,null,null,null,null,null,null,null,null,null,null,null,null,null,null,null,"МУП \"Канализационное хозяйство\"",0.318,0.252,3.14,5.12,3.44,5.61,3.65,5.95,3.74,6.1,3.87,6.31,4.28,6.98,4.75,4.47,4.2,3.92]
[null,null,null,null,null,null,null,null,null,null,null,null,null,null,null,null,null,"ФГБУ \"ЦЖКУ\" МИНОБОРОНЫ РОССИИ",0.318,0.252,3.14,5.12,3.44,5.61,3.65,5.95,3.74,6.1,3.87,6.31,4.28,6.98,4.75,4.47,4.2,3.92]
[null,null,null,null,null,null,null,null,null,null,null,null,null,null,null,null,null,"Акционерное общество \"Энергосетевая Компания ЧТПЗ\"",0.318,0.252,3.14,5.12,3.44,5.61,3.65,5.95,3.74,6.1,3.87,6.31,4.28,6.98,4.75,4.47,4.2,3.92]
[null,null,null,null,null,null,null,null,null,null,null,null,null,null,null,null,null,"АО \"Челябинское авиапредприятие\"",0.318,0.252,3.14,5.12,3.44,5.61,3.65,5.95,3.74,6.1,3.87,6.31,4.28,6.98,4.75,4.47,4.2,3.92]
[null,null,null,null,null,null,null,null,null,null,null,null,null,null,null,null,null,"АО \"Сигнал\"",0.318,0.252,3.14,5.12,3.44,5.61,3.65,5.95,3.74,6.1,3.87,6.31,4.28,6.98,4.75,4.47,4.2,3.92]
[null,null,null,null,null,null,null,null,null,null,null,null,null,null,null,null,null,"АО \"Энсер\"",0.318,0.252,3.14,5.12,3.44,5.61,3.65,5.95,3.74,6.1,3.87,6.31,4.28,6.98,4.75,4.47,4.2,3.92]
[null,null,null,null,null,null,null,null,null,null,null,null,null,null,null,null,null,"ЗАО Фирма \"Инженерные сети\"",0.318,0.252,3.14,5.12,3.44,5.61,3.65,5.95,3.74,6.1,3.87,6.31,4.28,6.98,4.75,4.47,4.2,3.92]
[null,null,null,null,null,null,null,null,null,null,null,null,null,null,null,null,null,"ОАО \"Энергопром - Челябинский электродный завод\" ",0.318,0.252,3.14,5.12,3.44,5.61,3.65,5.95,3.74,6.1,3.87,6.31,4.28,6.98,4.75,4.47,4.2,3.92]
[null,null,null,null,null,null,null,null,null,null,null,null,null,null,null,null,null,"ООО \"Водопроводная компания\"",0.318,0.252,3.14,5.12,3.44,5.61,3.65,5.95,3.74,6.1,3.87,6.31,4.28,6.98,4.75,4.47,4.2,3.92]
[null,null,null,null,null,null,null,null,null,null,null,null,null,null,null,null,null,"ООО \"СИТИ-ПАРК-Энерго\"  ",{"$f":"$S$109","v":0.318},{"$f":"$T$109","v":0.252},{"$f":"$U$109","v":3.14},{"$f":"$V$109","v":5.12},{"$f":"$W$109","v":3.44},{"$f":"$X$109","v":5.61},{"$f":"$Y$109","v":3.65},{"$f":"$Z$109","v":5.95},{"$f":"$AA$109","v":3.74},{"$f":"$AB$109","v":6.1},{"$f":"$AC$109","v":3.87},{"$f":"$AD$109","v":6.31},{"$f":"$AE$109","v":4.28},{"$f":"$AF$109","v":6.98},{"$f":"$AG$109","v":4.75},{"$f":"$AH$109","v":4.47},{"$f":"$AI$109","v":4.2},{"$f":"$AJ$109","v":3.92}]
[null,null,null,null,null,null,null,null,null,null,null,null,null,null,null,null,null,"ООО \"Уралавтоприцеп\"",0.318,0.252,3.14,5.12,3.44,5.61,3.65,5.95,3.74,6.1,3.87,6.31,4.28,6.98,4.75,4.47,4.2,3.92]
[null,null,null,null,null,null,null,null,null,null,null,null,null,null,null,null,null,"АО \"ЦАР\"",0.318,0.252,3.14,5.12,3.44,5.61,3.65,5.95,3.74,6.1,3.87,6.31,4.28,6.98,4.75,4.47,4.2,3.92]
[null,null,null,null,null,null,null,null,null,null,null,null,null,null,null,null,null,"Общество с ограниченной ответственностью \"ЮЖУРАЛВОДОКАНАЛ\" ",0.318,0.252,3.14,5.12,3.44,5.61,3.65,5.95,3.74,6.1,3.87,6.31,4.28,6.98,4.75,4.47,4.2,3.92]
[null,null,null,null,null,null,null,null,null,null,null,null,null,null,null,null,null,"ПАО \"ФОРТУМ\"",0.318,0.252,3.14,5.12,3.44,5.61,3.65,5.95,3.74,6.1,3.87,6.31,4.28,6.98,4.75,4.47,4.2,3.92]
[null,null,null,null,null,null,null,null,null,null,null,null,null,null,null,null,null,"ПАО \"Челябинский завод профилированного стального настила\"",0.318,0.252,3.14,5.12,3.44,5.61,3.65,5.95,3.74,6.1,3.87,6.31,4.28,6.98,4.75,4.47,4.2,3.92]
[null,null,null,null,null,null,null,null,null,null,null,null,null,null,null,null,null,"ПАО \"Челябинский металлургический комбинат\"",0.318,0.252,3.14,5.12,3.44,5.61,3.65,5.95,3.74,6.1,3.87,6.31,4.28,6.98,4.75,4.47,4.2,3.92]
[null,null,null,null,null,null,null,null,null,null,null,null,null,null,null,null,null,"ФГБУ \"ЦЖКУ\" МИНОБОРОНЫ РОССИИ",0.318,0.252,3.14,5.12,3.44,5.61,3.65,5.95,3.74,6.1,3.87,6.31,4.28,6.98,4.75,4.47,4.2,3.92]
[null,null,null,null,null,null,null,null,null,null,null,null,null,null,null,null,null,"Южно-Уральская дирекция по тепловодоснабжению - филиал ОАО \"РЖД\" ",0.318,0.252,3.14,5.12,3.44,5.61,3.65,5.95,3.74,6.1,3.87,6.31,4.28,6.98,4.75,4.47,4.2,3.92]
[null,null,null,null,null,null,null,null,null,null,null,null,null,null,null,null,null,"Общество с ограниченной ответственностью \"ВОДООТВЕДЕНИЕ ПЛЮС\"",0.318,0.252,3.14,5.12,3.44,5.61,3.65,5.95,3.74,6.1,3.87,6.31,4.28,6.98,4.75,4.47,4.2,3.92]
[null,null,null,null,null,null,null,null,null,null,null,null,null,null,null,null,null,"Общество с ограниченной ответственностью \"ВОДОСНАБЖЕНИЕ ПЛЮС\"",0.318,0.252,3.14,5.12,3.44,5.61,3.65,5.95,3.74,6.1,3.87,6.31,4.28,6.98,4.75,4.47,4.2,3.92]
[null,null,null,null,null,null,null,null,null,null,null,null,null,null,null,null,null,"МП ЖКХ \"Агаповское\"",0.318,0.252,3.14,5.12,3.44,5.61,3.65,5.95,3.74,6.1,3.87,6.31,4.28,6.98,4.75,4.47,4.2,3.92]
[null,null,null,null,null,null,null,null,null,null,null,null,null,null,null,null,null,"МП ЖКХ \"Желтинское\"       ",0.318,0.252,3.14,5.12,3.44,5.61,3.65,5.95,3.74,6.1,3.87,6.31,4.28,6.98,4.75,4.47,4.2,3.92]
[null,null,null,null,null,null,null,null,null,null,null,null,null,null,null,null,null,"МУП \"На торговой\"",0.318,0.252,3.14,5.12,3.44,5.61,3.65,5.95,3.74,6.1,3.87,6.31,4.28,6.98,4.75,4.47,4.2,3.92]
[null,null,null,null,null,null,null,null,null,null,null,null,null,null,null,null,null,"МУП \"Черниговское ЖКХ\"             ",0.318,0.252,3.14,5.12,3.44,5.61,3.65,5.95,3.74,6.1,3.87,6.31,4.28,6.98,4.75,4.47,4.2,3.92]
[null,null,null,null,null,null,null,null,null,null,null,null,null,null,null,null,null,"Общество с ограниченной ответственностью \"ЖКХ Горный\"",0.318,0.252,3.14,5.12,3.44,5.61,3.65,5.95,3.74,6.1,3.87,6.31,4.28,6.98,4.75,4.47,4.2,3.92]
[null,null,null,null,null,null,null,null,null,null,null,null,null,null,null,null,null,"ООО \"Вертикаль\" ",0.318,0.252,3.14,5.12,3.44,5.61,3.65,5.95,3.74,6.1,3.87,6.31,4.28,6.98,4.75,4.47,4.2,3.92]
[null,null,null,null,null,null,null,null,null,null,null,null,null,null,null,null,null,"ООО \"ЖКХ Агаповское\"             ",0.318,0.252,3.14,5.12,3.44,5.61,3.65,5.95,3.74,6.1,3.87,6.31,4.28,6.98,4.75,4.47,4.2,3.92]
[null,null,null,null,null,null,null,null,null,null,null,null,null,null,null,null,null,"ООО \"Приморский водоканал\"",0.318,0.252,3.14,5.12,3.44,5.61,3.65,5.95,3.74,6.1,3.87,6.31,4.28,6.98,4.75,4.47,4.2,3.92]
[null,null,null,null,null,null,null,null,null,null,null,null,null,null,null,null,null,"Аргаяшское МУПВКХ",0.318,0.252,3.14,5.12,3.44,5.61,3.65,5.95,3.74,6.1,3.87,6.31,4.28,6.98,4.75,4.47,4.2,3.92]
[null,null,null,null,null,null,null,null,null,null,null,null,null,null,null,null,null,"ГБОУС ПО (ССУЗ) \"Аргаяшский аграрный техникум\"                                          ",0.318,0.252,3.14,5.12,3.44,5.61,3.65,5.95,3.74,6.1,3.87,6.31,4.28,6.98,4.75,4.47,4.2,3.92]
[null,null,null,null,null,null,null,null,null,null,null,null,null,null,null,null,null,"МУ \"Управление Байрамгуловского ЖКХ\"",0.318,0.252,3.14,5.12,3.44,5.61,3.65,5.95,3.74,6.1,3.87,6.31,4.28,6.98,4.75,4.47,4.2,3.92]
[null,null,null,null,null,null,null,null,null,null,null,null,null,null,null,null,null,"МУ \"Управление Дербишевского ЖКХ\"",0.318,0.252,3.14,5.12,3.44,5.61,3.65,5.95,3.74,6.1,3.87,6.31,4.28,6.98,4.75,4.47,4.2,3.92]
[null,null,null,null,null,null,null,null,null,null,null,null,null,null,null,null,null,"МУ \"Управление Ишалинского ЖКХ\" ",0.318,0.252,3.14,5.12,3.44,5.61,3.65,5.95,3.74,6.1,3.87,6.31,4.28,6.98,4.75,4.47,4.2,3.92]
[null,null,null,null,null,null,null,null,null,null,null,null,null,null,null,null,null,"МУ \"Управление Камышевского ЖКХ\"",0.318,0.252,3.14,5.12,3.44,5.61,3.65,5.95,3.74,6.1,3.87,6.31,4.28,6.98,4.75,4.47,4.2,3.92]
[null,null,null,null,null,null,null,null,null,null,null,null,null,null,null,null,null,"МУ \"Управление Норкинского ЖКХ\"",0.318,0.252,3.14,5.12,3.44,5.61,3.65,5.95,3.74,6.1,3.87,6.31,4.28,6.98,4.75,4.47,4.2,3.92]
[null,null,null,null,null,null,null,null,null,null,null,null,null,null,null,null,null,"МУ \"Управление Яраткуловского ЖКХ\"",0.318,0.252,3.14,5.12,3.44,5.61,3.65,5.95,3.74,6.1,3.87,6.31,4.28,6.98,4.75,4.47,4.2,3.92]
[null,null,null,null,null,null,null,null,null,null,null,null,null,null,null,null,null,"МУ Управление Худайбердинского ЖКХ",0.318,0.252,3.14,5.12,3.44,5.61,3.65,5.95,3.74,6.1,3.87,6.31,4.28,6.98,4.75,4.47,4.2,3.92]
[null,null,null,null,null,null,null,null,null,null,null,null,null,null,null,null,null,"ООО \"Жилтехсервис\"",0.318,0.252,3.14,5.12,3.44,5.61,3.65,5.95,3.74,6.1,3.87,6.31,4.28,6.98,4.75,4.47,4.2,3.92]
[null,null,null,null,null,null,null,null,null,null,null,null,null,null,null,null,null,"МУП \"Управление Губернского ЖКХ Кузнецкого сельского поселения\"  ",0.318,0.252,3.14,5.12,3.44,5.61,3.65,5.95,3.74,6.1,3.87,6.31,4.28,6.98,4.75,4.47,4.2,3.92]
[null,null,null,null,null,null,null,null,null,null,null,null,null,null,null,null,null,"ООО МЦМиР \"Курорт Увильды\"",0.318,0.252,3.14,5.12,3.44,5.61,3.65,5.95,3.74,6.1,3.87,6.31,4.28,6.98,4.75,4.47,4.2,3.92]
[null,null,null,null,null,null,null,null,null,null,null,null,null,null,null,null,null,"Южно-Уральская дирекция по тепловодоснабжению - филиал ОАО \"РЖД\" ",0.318,0.252,3.14,5.12,3.44,5.61,3.65,5.95,3.74,6.1,3.87,6.31,4.28,6.98,4.75,4.47,4.2,3.92]
[null,null,null,null,null,null,null,null,null,null,null,null,null,null,null,null,null,"Акционерное общество \"ТРАНСНЕФТЬ-УРАЛ\"",0.318,0.252,3.14,5.12,3.44,5.61,3.65,5.95,3.74,6.1,3.87,6.31,4.28,6.98,4.75,4.47,4.2,3.92]
[null,null,null,null,null,null,null,null,null,null,null,null,null,null,null,null,null,"ОАО \"РЖД\" (Куйбышевская дирекция по тепловодоснабжению – филиал ОАО \"РЖД\")",0.318,0.252,3.14,5.12,3.44,5.61,3.65,5.95,3.74,6.1,3.87,6.31,4.28,6.98,4.75,4.47,4.2,3.92]
[null,null,null,null,null,null,null,null,null,null,null,null,null,null,null,null,null,"Общество с ограниченной ответственностью \"МИНЬЯРВОДОКАНАЛ-СЕРВИС\"",0.318,0.252,3.14,5.12,3.44,5.61,3.65,5.95,3.74,6.1,3.87,6.31,4.28,6.98,4.75,4.47,4.2,3.92]
[null,null,null,null,null,null,null,null,null,null,null,null,null,null,null,null,null,"ООО \"Городские очистные сооружения\"",0.318,0.252,3.14,5.12,3.44,5.61,3.65,5.95,3.74,6.1,3.87,6.31,4.28,6.98,4.75,4.47,4.2,3.92]
[null,null,null,null,null,null,null,null,null,null,null,null,null,null,null,null,null,"ООО \"Кропачевский жилищно-коммунальный сервис\"               ",0.318,0.252,3.14,5.12,3.44,5.61,3.65,5.95,3.74,6.1,3.87,6.31,4.28,6.98,4.75,4.47,4.2,3.92]
[null,null,null,null,null,null,null,null,null,null,null,null,null,null,null,null,null,"ООО \"Симский водоканал\" ",0.318,0.252,3.14,5.12,3.44,5.61,3.65,5.95,3.74,6.1,3.87,6.31,4.28,6.98,4.75,4.47,4.2,3.92]
[null,null,null,null,null,null,null,null,null,null,null,null,null,null,null,null,null,"ООО \"Теплоэнергетика\"",0.318,0.252,3.14,5.12,3.44,5.61,3.65,5.95,3.74,6.1,3.87,6.31,4.28,6.98,4.75,4.47,4.2,3.92]
[null,null,null,null,null,null,null,null,null,null,null,null,null,null,null,null,null,"Южно-Уральская дирекция по тепловодоснабжению - филиал ОАО \"РЖД\" ",0.318,0.252,3.14,5.12,3.44,5.61,3.65,5.95,3.74,6.1,3.87,6.31,4.28,6.98,4.75,4.47,4.2,3.92]
[null,null,null,null,null,null,null,null,null,null,null,null,null,null,null,null,null,"МХО-ООО \"Коммунальщик\"",0.318,0.252,3.14,5.12,3.44,5.61,3.65,5.95,3.74,6.1,3.87,6.31,4.28,6.98,4.75,4.47,4.2,3.92]
[null,null,null,null,null,null,null,null,null,null,null,null,null,null,null,null,null,"ООО \"АКВА ЖКХ\" ",0.318,0.252,3.14,5.12,3.44,5.61,3.65,5.95,3.74,6.1,3.87,6.31,4.28,6.98,4.75,4.47,4.2,3.92]
[null,null,null,null,null,null,null,null,null,null,null,null,null,null,null,null,null,"ООО \"БредыАгроСервис\"",0.318,0.252,3.14,5.12,3.44,5.61,3.65,5.95,3.74,6.1,3.87,6.31,4.28,6.98,4.75,4.47,4.2,3.92]
[null,null,null,null,null,null,null,null,null,null,null,null,null,null,null,null,null,"ООО \"Источник\" ",0.318,0.252,3.14,5.12,3.44,5.61,3.65,5.95,3.74,6.1,3.87,6.31,4.28,6.98,4.75,4.47,4.2,3.92]
[null,null,null,null,null,null,null,null,null,null,null,null,null,null,null,null,null,"ООО \"Чистый родник\"",0.318,0.252,3.14,5.12,3.44,5.61,3.65,5.95,3.74,6.1,3.87,6.31,4.28,6.98,4.75,4.47,4.2,3.92]
[null,null,null,null,null,null,null,null,null,null,null,null,null,null,null,null,null,"ООО УК \"Андреевская-ЖКС\"                      ",0.318,0.252,3.14,5.12,3.44,5.61,3.65,5.95,3.74,6.1,3.87,6.31,4.28,6.98,4.75,4.47,4.2,3.92]
[null,null,null,null,null,null,null,null,null,null,null,null,null,null,null,null,null,"МУП \"Варненское ЖКО\" ",0.318,0.252,3.14,5.12,3.44,5.61,3.65,5.95,3.74,6.1,3.87,6.31,4.28,6.98,4.75,4.47,4.2,3.92]
[null,null,null,null,null,null,null,null,null,null,null,null,null,null,null,null,null,"МУП \"ЖКХ\" Новоуральского сельского поселения ",0.318,0.252,3.14,5.12,3.44,5.61,3.65,5.95,3.74,6.1,3.87,6.31,4.28,6.98,4.75,4.47,4.2,3.92]
[null,null,null,null,null,null,null,null,null,null,null,null,null,null,null,null,null,"ООО \"Жилком\" ",0.318,0.252,3.14,5.12,3.44,5.61,3.65,5.95,3.74,6.1,3.87,6.31,4.28,6.98,4.75,4.47,4.2,3.92]
[null,null,null,null,null,null,null,null,null,null,null,null,null,null,null,null,null,"МУП \"Родник\"",0.318,0.252,3.14,5.12,3.44,5.61,3.65,5.95,3.74,6.1,3.87,6.31,4.28,6.98,4.75,4.47,4.2,3.92]
[null,null,null,null,null,null,null,null,null,null,null,null,null,null,null,null,null,"МУП \"Благоустройство\"",0.318,0.252,3.14,5.12,3.44,5.61,3.65,5.95,3.74,6.1,3.87,6.31,4.28,6.98,4.75,4.47,4.2,3.92]
[null,null,null,null,null,null,null,null,null,null,null,null,null,null,null,null,null,"МУП Спасского сельского поселения \"КомуналСервис\"",0.318,0.252,3.14,5.12,3.44,5.61,3.65,5.95,3.74,6.1,3.87,6.31,4.28,6.98,4.75,4.47,4.2,3.92]
[null,null,null,null,null,null,null,null,null,null,null,null,null,null,null,null,null,"ООО \"Веста\" ",0.318,0.252,3.14,5.12,3.44,5.61,3.65,5.95,3.74,6.1,3.87,6.31,4.28,6.98,4.75,4.47,4.2,3.92]
[null,null,null,null,null,null,null,null,null,null,null,null,null,null,null,null,null,"ИП Валенкова Т.А.",0.318,0.252,3.14,5.12,3.44,5.61,3.65,5.95,3.74,6.1,3.87,6.31,4.28,6.98,4.75,4.47,4.2,3.92]
[null,null,null,null,null,null,null,null,null,null,null,null,null,null,null,null,null,"ООО \"Станица\" ",0.318,0.252,3.14,5.12,3.44,5.61,3.65,5.95,3.74,6.1,3.87,6.31,4.28,6.98,4.75,4.47,4.2,3.92]
[null,null,null,null,null,null,null,null,null,null,null,null,null,null,null,null,null,"УМП \"Малахит\"",0.318,0.252,3.14,5.12,3.44,5.61,3.65,5.95,3.74,6.1,3.87,6.31,4.28,6.98,4.75,4.47,4.2,3.92]
[null,null,null,null,null,null,null,null,null,null,null,null,null,null,null,null,null,"Федеральное казенное учреждение \"Исправительная колония № 18 Главного управления Федеральной службы исполнения наказанийпо Челябинской области\"",0.318,0.252,3.14,5.12,3.44,5.61,3.65,5.95,3.74,6.1,3.87,6.31,4.28,6.98,4.75,4.47,4.2,3.92]
[null,null,null,null,null,null,null,null,null,null,null,null,null,null,null,null,null,"МП \"УК ЖКХ\" ",0.318,0.252,3.14,5.12,3.44,5.61,3.65,5.95,3.74,6.1,3.87,6.31,4.28,6.98,4.75,4.47,4.2,3.92]
[null,null,null,null,null,null,null,null,null,null,null,null,null,null,null,null,null,"ООО \"Вега\"",0.318,0.252,3.14,5.12,3.44,5.61,3.65,5.95,3.74,6.1,3.87,6.31,4.28,6.98,4.75,4.47,4.2,3.92]
[null,null,null,null,null,null,null,null,null,null,null,null,null,null,null,null,null,"Южно-Уральская дирекция по тепловодоснабжению - филиал ОАО \"РЖД\" ",0.318,0.252,3.14,5.12,3.44,5.61,3.65,5.95,3.74,6.1,3.87,6.31,4.28,6.98,4.75,4.47,4.2,3.92]
[null,null,null,null,null,null,null,null,null,null,null,null,null,null,null,null,null,"МУП ЖКХ Коелга",0.318,0.252,3.14,5.12,3.44,5.61,3.65,5.95,3.74,6.1,3.87,6.31,4.28,6.98,4.75,4.47,4.2,3.92]
[null,null,null,null,null,null,null,null,null,null,null,null,null,null,null,null,null,"ООО \"Е Р В\"",0.318,0.252,3.14,5.12,3.44,5.61,3.65,5.95,3.74,6.1,3.87,6.31,4.28,6.98,4.75,4.47,4.2,3.92]
[null,null,null,null,null,null,null,null,null,null,null,null,null,null,null,null,null,"ООО \"Сфера\" ",0.318,0.252,3.14,5.12,3.44,5.61,3.65,5.95,3.74,6.1,3.87,6.31,4.28,6.98,4.75,4.47,4.2,3.92]
[null,null,null,null,null,null,null,null,null,null,null,null,null,null,null,null,null,"ООО УК \"Управляющая компания\"",0.318,0.252,3.14,5.12,3.44,5.61,3.65,5.95,3.74,6.1,3.87,6.31,4.28,6.98,4.75,4.47,4.2,3.92]
[null,null,null,null,null,null,null,null,null,null,null,null,null,null,null,null,null,"МУП \"ЖКХ\" Великопетровского сельского поселения",0.318,0.252,3.14,5.12,3.44,5.61,3.65,5.95,3.74,6.1,3.87,6.31,4.28,6.98,4.75,4.47,4.2,3.92]
[null,null,null,null,null,null,null,null,null,null,null,null,null,null,null,null,null,"МУП \"ЖКХ\" Еленинского сельского поселения",{"$f":"$S$109","v":0.318},{"$f":"$T$109","v":0.252},{"$f":"$U$109","v":3.14},{"$f":"$V$109","v":5.12},{"$f":"$W$109","v":3.44},{"$f":"$X$109","v":5.61},{"$f":"$Y$109","v":3.65},{"$f":"$Z$109","v":5.95},{"$f":"$AA$109","v":3.74},{"$f":"$AB$109","v":6.1},{"$f":"$AC$109","v":3.87},{"$f":"$AD$109","v":6.31},{"$f":"$AE$109","v":4.28},{"$f":"$AF$109","v":6.98},{"$f":"$AG$109","v":4.75},{"$f":"$AH$109","v":4.47},{"$f":"$AI$109","v":4.2},{"$f":"$AJ$109","v":3.92}]
[null,null,null,null,null,null,null,null,null,null,null,null,null,null,null,null,null,"МУП \"ЖКХ\" Полтавского сельского поселения",0.318,0.252,3.14,5.12,3.44,5.61,3.65,5.95,3.74,6.1,3.87,6.31,4.28,6.98,4.75,4.47,4.2,3.92]
[null,null,null,null,null,null,null,null,null,null,null,null,null,null,null,null,null,"ООО \"Жилищно-коммунальное хозяйство \"Партнер\" ",0.318,0.252,3.14,5.12,3.44,5.61,3.65,5.95,3.74,6.1,3.87,6.31,4.28,6.98,4.75,4.47,4.2,3.92]
[null,null,null,null,null,null,null,null,null,null,null,null,null,null,null,null,null,"ООО \"ЖКХ Гарант плюс\"",0.318,0.252,3.14,5.12,3.44,5.61,3.65,5.95,3.74,6.1,3.87,6.31,4.28,6.98,4.75,4.47,4.2,3.92]
[null,null,null,null,null,null,null,null,null,null,null,null,null,null,null,null,null,"ООО ЮУТЭК \"ТеплоСервис\"",0.318,0.252,3.14,5.12,3.44,5.61,3.65,5.95,3.74,6.1,3.87,6.31,4.28,6.98,4.75,4.47,4.2,3.92]
[null,null,null,null,null,null,null,null,null,null,null,null,null,null,null,null,null,"ГСУССЗН \"Черкаскульский психоневрологический интернат\"",0.318,0.252,3.14,5.12,3.44,5.61,3.65,5.95,3.74,6.1,3.87,6.31,4.28,6.98,4.75,4.47,4.2,3.92]
[null,null,null,null,null,null,null,null,null,null,null,null,null,null,null,null,null,"ООО \"Водоканал\"",0.318,0.252,3.14,5.12,3.44,5.61,3.65,5.95,3.74,6.1,3.87,6.31,4.28,6.98,4.75,4.47,4.2,3.92]
[null,null,null,null,null,null,null,null,null,null,null,null,null,null,null,null,null,"МУП \"БЖЭК\"",0.318,0.252,3.14,5.12,3.44,5.61,3.65,5.95,3.74,6.1,3.87,6.31,4.28,6.98,4.75,4.47,4.2,3.92]
[null,null,null,null,null,null,null,null,null,null,null,null,null,null,null,null,null,"МУП \"Булзинский ЭУЖКХ\"",0.318,0.252,3.14,5.12,3.44,5.61,3.65,5.95,3.74,6.1,3.87,6.31,4.28,6.98,4.75,4.47,4.2,3.92]
[null,null,null,null,null,null,null,null,null,null,null,null,null,null,null,null,null,"МУП \"Жилищно-комунальный трест\"с. Тюбук",0.318,0.252,3.14,5.12,3.44,5.61,3.65,5.95,3.74,6.1,3.87,6.31,4.28,6.98,4.75,4.47,4.2,3.92]
[null,null,null,null,null,null,null,null,null,null,null,null,null,null,null,null,null,"МУП \"ЖКХ Шабурово\"",0.318,0.252,3.14,5.12,3.44,5.61,3.65,5.95,3.74,6.1,3.87,6.31,4.28,6.98,4.75,4.47,4.2,3.92]
[null,null,null,null,null,null,null,null,null,null,null,null,null,null,null,null,null,"ООО \"ВКС\"",0.318,0.252,3.14,5.12,3.44,5.61,3.65,5.95,3.74,6.1,3.87,6.31,4.28,6.98,4.75,4.47,4.2,3.92]
[null,null,null,null,null,null,null,null,null,null,null,null,null,null,null,null,null,"ООО ЖРСП \"Старт\" ",0.318,0.252,3.14,5.12,3.44,5.61,3.65,5.95,3.74,6.1,3.87,6.31,4.28,6.98,4.75,4.47,4.2,3.92]
[null,null,null,null,null,null,null,null,null,null,null,null,null,null,null,null,null,"Южно-Уральская дирекция по тепловодоснабжению - филиал ОАО \"РЖД\" ",0.318,0.252,3.14,5.12,3.44,5.61,3.65,5.95,3.74,6.1,3.87,6.31,4.28,6.98,4.75,4.47,4.2,3.92]
[null,null,null,null,null,null,null,null,null,null,null,null,null,null,null,null,null,"ЗАО \"Катавский цемент\"      ",0.318,0.252,3.14,5.12,3.44,5.61,3.65,5.95,3.74,6.1,3.87,6.31,4.28,6.98,4.75,4.47,4.2,3.92]
[null,null,null,null,null,null,null,null,null,null,null,null,null,null,null,null,null,"МУП \"Теплоэнерго\"                ",0.318,0.252,3.14,5.12,3.44,5.61,3.65,5.95,3.74,6.1,3.87,6.31,4.28,6.98,4.75,4.47,4.2,3.92]
[null,null,null,null,null,null,null,null,null,null,null,null,null,null,null,null,null,"ООО \"Катав-Ивановский литейный завод\"",0.318,0.252,3.14,5.12,3.44,5.61,3.65,5.95,3.74,6.1,3.87,6.31,4.28,6.98,4.75,4.47,4.2,3.92]
[null,null,null,null,null,null,null,null,null,null,null,null,null,null,null,null,null,"ООО \"Энергосервис\"",0.318,0.252,3.14,5.12,3.44,5.61,3.65,5.95,3.74,6.1,3.87,6.31,4.28,6.98,4.75,4.47,4.2,3.92]
[null,null,null,null,null,null,null,null,null,null,null,null,null,null,null,null,null,"Муниципальное унитарное предприятие жилищно-коммунального хозяйства \"Гранитное\"",0.318,0.252,3.14,5.12,3.44,5.61,3.65,5.95,3.74,6.1,3.87,6.31,4.28,6.98,4.75,4.47,4.2,3.92]
[null,null,null,null,null,null,null,null,null,null,null,null,null,null,null,null,null,"ООО \"Квартирный вопрос\"",0.318,0.252,3.14,5.12,3.44,5.61,3.65,5.95,3.74,6.1,3.87,6.31,4.28,6.98,4.75,4.47,4.2,3.92]
[null,null,null,null,null,null,null,null,null,null,null,null,null,null,null,null,null,"ООО \"Станица\" ",0.318,0.252,3.14,5.12,3.44,5.61,3.65,5.95,3.74,6.1,3.87,6.31,4.28,6.98,4.75,4.47,4.2,3.92]
[null,null,null,null,null,null,null,null,null,null,null,null,null,null,null,null,null,"ООО ЖКХ \"Кизильское\" ",0.318,0.252,3.14,5.12,3.44,5.61,3.65,5.95,3.74,6.1,3.87,6.31,4.28,6.98,4.75,4.47,4.2,3.92]
[null,null,null,null,null,null,null,null,null,null,null,null,null,null,null,null,null,"ООО ЖКХ \"Шанс\"",0.318,0.252,3.14,5.12,3.44,5.61,3.65,5.95,3.74,6.1,3.87,6.31,4.28,6.98,4.75,4.47,4.2,3.92]
[null,null,null,null,null,null,null,null,null,null,null,null,null,null,null,null,null,"ООО УК \"Вертикаль+\"",0.318,0.252,3.14,5.12,3.44,5.61,3.65,5.95,3.74,6.1,3.87,6.31,4.28,6.98,4.75,4.47,4.2,3.92]
[null,null,null,null,null,null,null,null,null,null,null,null,null,null,null,null,null,"МУП \"Гарант\"",0.318,0.252,3.14,5.12,3.44,5.61,3.65,5.95,3.74,6.1,3.87,6.31,4.28,6.98,4.75,4.47,4.2,3.92]
[null,null,null,null,null,null,null,null,null,null,null,null,null,null,null,null,null,"МУП ЖКХ \"Шумовское\" ",0.318,0.252,3.14,5.12,3.44,5.61,3.65,5.95,3.74,6.1,3.87,6.31,4.28,6.98,4.75,4.47,4.2,3.92]
[null,null,null,null,null,null,null,null,null,null,null,null,null,null,null,null,null,"ООО \"Бродокалмакское ЖКХ\"",0.318,0.252,3.14,5.12,3.44,5.61,3.65,5.95,3.74,6.1,3.87,6.31,4.28,6.98,4.75,4.47,4.2,3.92]
[null,null,null,null,null,null,null,null,null,null,null,null,null,null,null,null,null,"ООО \"Луговское\"",0.318,0.252,3.14,5.12,3.44,5.61,3.65,5.95,3.74,6.1,3.87,6.31,4.28,6.98,4.75,4.47,4.2,3.92]
[null,null,null,null,null,null,null,null,null,null,null,null,null,null,null,null,null,"ООО \"Октябрьское\"",0.318,0.252,3.14,5.12,3.44,5.61,3.65,5.95,3.74,6.1,3.87,6.31,4.28,6.98,4.75,4.47,4.2,3.92]
[null,null,null,null,null,null,null,null,null,null,null,null,null,null,null,null,null,"МУП ЖКХ \"Северное\"",0.318,0.252,3.14,5.12,3.44,5.61,3.65,5.95,3.74,6.1,3.87,6.31,4.28,6.98,4.75,4.47,4.2,3.92]
[null,null,null,null,null,null,null,null,null,null,null,null,null,null,null,null,null,"Южно-Уральская дирекция по тепловодоснабжению - филиал ОАО \"РЖД\" ",0.318,0.252,3.14,5.12,3.44,5.61,3.65,5.95,3.74,6.1,3.87,6.31,4.28,6.98,4.75,4.47,4.2,3.92]
[null,null,null,null,null,null,null,null,null,null,null,null,null,null,null,null,null,"МУП \"КунашакСервис\"",0.318,0.252,3.14,5.12,3.44,5.61,3.65,5.95,3.74,6.1,3.87,6.31,4.28,6.98,4.75,4.47,4.2,3.92]
[null,null,null,null,null,null,null,null,null,null,null,null,null,null,null,null,null,"Южно-Уральская дирекция по тепловодоснабжению - филиал ОАО \"РЖД\" ",0.318,0.252,3.14,5.12,3.44,5.61,3.65,5.95,3.74,6.1,3.87,6.31,4.28,6.98,4.75,4.47,4.2,3.92]
[null,null,null,null,null,null,null,null,null,null,null,null,null,null,null,null,null,"ООО \"Горводоканал\"",0.318,0.252,3.14,5.12,3.44,5.61,3.65,5.95,3.74,6.1,3.87,6.31,4.28,6.98,4.75,4.47,4.2,3.92]
[null,null,null,null,null,null,null,null,null,null,null,null,null,null,null,null,null,"ООО \"Тепловые сети\"",0.318,0.252,3.14,5.12,3.44,5.61,3.65,5.95,3.74,6.1,3.87,6.31,4.28,6.98,4.75,4.47,4.2,3.92]
[null,null,null,null,null,null,null,null,null,null,null,null,null,null,null,null,null,"МУП \"Арсинское ЖКХ\"",0.318,0.252,3.14,5.12,3.44,5.61,3.65,5.95,3.74,6.1,3.87,6.31,4.28,6.98,4.75,4.47,4.2,3.92]
[null,null,null,null,null,null,null,null,null,null,null,null,null,null,null,null,null,"МУП \"Кассельское ЖКХ\"",0.318,0.252,3.14,5.12,3.44,5.61,3.65,5.95,3.74,6.1,3.87,6.31,4.28,6.98,4.75,4.47,4.2,3.92]
[null,null,null,null,null,null,null,null,null,null,null,null,null,null,null,null,null,"МУП \"Остроленское ЖКХ\"",0.318,0.252,3.14,5.12,3.44,5.61,3.65,5.95,3.74,6.1,3.87,6.31,4.28,6.98,4.75,4.47,4.2,3.92]
[null,null,null,null,null,null,null,null,null,null,null,null,null,null,null,null,null,"ООО \"Гумбейское ЖКХ\"",0.318,0.252,3.14,5.12,3.44,5.61,3.65,5.95,3.74,6.1,3.87,6.31,4.28,6.98,4.75,4.47,4.2,3.92]
[null,null,null,null,null,null,null,null,null,null,null,null,null,null,null,null,null,"Общество с ограниченной ответственностью \"ВЕКТОР\" пос. Южный",0.318,0.252,3.14,5.12,3.44,5.61,3.65,5.95,3.74,6.1,3.87,6.31,4.28,6.98,4.75,4.47,4.2,3.92]
[null,null,null,null,null,null,null,null,null,null,null,null,null,null,null,null,null,"ООО \"Парижское ЖКХ\" ",0.318,0.252,3.14,5.12,3.44,5.61,3.65,5.95,3.74,6.1,3.87,6.31,4.28,6.98,4.75,4.47,4.2,3.92]
[null,null,null,null,null,null,null,null,null,null,null,null,null,null,null,null,null,"МУП \"Водоканал\"",0.318,0.252,3.14,5.12,3.44,5.61,3.65,5.95,3.74,6.1,3.87,6.31,4.28,6.98,4.75,4.47,4.2,3.92]
[null,null,null,null,null,null,null,null,null,null,null,null,null,null,null,null,null,"МУП \"Исток\"",0.318,0.252,3.14,5.12,3.44,5.61,3.65,5.95,3.74,6.1,3.87,6.31,4.28,6.98,4.75,4.47,4.2,3.92]
[null,null,null,null,null,null,null,null,null,null,null,null,null,null,null,null,null,"ООО \"Энергомонтажсервис\" ",0.318,0.252,3.14,5.12,3.44,5.61,3.65,5.95,3.74,6.1,3.87,6.31,4.28,6.98,4.75,4.47,4.2,3.92]
[null,null,null,null,null,null,null,null,null,null,null,null,null,null,null,null,null,"ООО \"Энергосервис\"  ",0.318,0.252,3.14,5.12,3.44,5.61,3.65,5.95,3.74,6.1,3.87,6.31,4.28,6.98,4.75,4.47,4.2,3.92]
[null,null,null,null,null,null,null,null,null,null,null,null,null,null,null,null,null,"МУП \"Каракульский жилкомсервис\"                  ",0.318,0.252,3.14,5.12,3.44,5.61,3.65,5.95,3.74,6.1,3.87,6.31,4.28,6.98,4.75,4.47,4.2,3.92]
[null,null,null,null,null,null,null,null,null,null,null,null,null,null,null,null,null,"МУП \"Кочердыкское ЖКХ\"",0.318,0.252,3.14,5.12,3.44,5.61,3.65,5.95,3.74,6.1,3.87,6.31,4.28,6.98,4.75,4.47,4.2,3.92]
[null,null,null,null,null,null,null,null,null,null,null,null,null,null,null,null,null,"МУП \"Маякское ЖКХ\"",0.318,0.252,3.14,5.12,3.44,5.61,3.65,5.95,3.74,6.1,3.87,6.31,4.28,6.98,4.75,4.47,4.2,3.92]
[null,null,null,null,null,null,null,null,null,null,null,null,null,null,null,null,null,"МУП \"Октябрьский групповой водопровод\"",0.318,0.252,3.14,5.12,3.44,5.61,3.65,5.95,3.74,6.1,3.87,6.31,4.28,6.98,4.75,4.47,4.2,3.92]
[null,null,null,null,null,null,null,null,null,null,null,null,null,null,null,null,null,"ООО \"Октябрьское\"",0.318,0.252,3.14,5.12,3.44,5.61,3.65,5.95,3.74,6.1,3.87,6.31,4.28,6.98,4.75,4.47,4.2,3.92]
[null,null,null,null,null,null,null,null,null,null,null,null,null,null,null,null,null,"ООО \"Водоотведение\"",0.318,0.252,3.14,5.12,3.44,5.61,3.65,5.95,3.74,6.1,3.87,6.31,4.28,6.98,4.75,4.47,4.2,3.92]
[null,null,null,null,null,null,null,null,null,null,null,null,null,null,null,null,null,"ООО \"Водоснабжение\" ",0.318,0.252,3.14,5.12,3.44,5.61,3.65,5.95,3.74,6.1,3.87,6.31,4.28,6.98,4.75,4.47,4.2,3.92]
[null,null,null,null,null,null,null,null,null,null,null,null,null,null,null,null,null,"ГСУССЗН \"Саткинский психоневрологический интернат\" ",0.318,0.252,3.14,5.12,3.44,5.61,3.65,5.95,3.74,6.1,3.87,6.31,4.28,6.98,4.75,4.47,4.2,3.92]
[null,null,null,null,null,null,null,null,null,null,null,null,null,null,null,null,null,"ДИ \"Синегорье\" ",0.318,0.252,3.14,5.12,3.44,5.61,3.65,5.95,3.74,6.1,3.87,6.31,4.28,6.98,4.75,4.47,4.2,3.92]
[null,null,null,null,null,null,null,null,null,null,null,null,null,null,null,null,null,"МУП \"Водоканал Сервис\" ",0.318,0.252,3.14,5.12,3.44,5.61,3.65,5.95,3.74,6.1,3.87,6.31,4.28,6.98,4.75,4.47,4.2,3.92]
[null,null,null,null,null,null,null,null,null,null,null,null,null,null,null,null,null,"МУП \"Теплосервис\"",0.318,0.252,3.14,5.12,3.44,5.61,3.65,5.95,3.74,6.1,3.87,6.31,4.28,6.98,4.75,4.47,4.2,3.92]
[null,null,null,null,null,null,null,null,null,null,null,null,null,null,null,null,null,"ОАО \"Комбинат \"Магнезит\"",0.318,0.252,3.14,5.12,3.44,5.61,3.65,5.95,3.74,6.1,3.87,6.31,4.28,6.98,4.75,4.47,4.2,3.92]
[null,null,null,null,null,null,null,null,null,null,null,null,null,null,null,null,null,"ОАО \"Энергосистемы\"         ",0.318,0.252,3.14,5.12,3.44,5.61,3.65,5.95,3.74,6.1,3.87,6.31,4.28,6.98,4.75,4.47,4.2,3.92]
[null,null,null,null,null,null,null,null,null,null,null,null,null,null,null,null,null,"ООО \"Водоотведение\"",0.318,0.252,3.14,5.12,3.44,5.61,3.65,5.95,3.74,6.1,3.87,6.31,4.28,6.98,4.75,4.47,4.2,3.92]
[null,null,null,null,null,null,null,null,null,null,null,null,null,null,null,null,null,"ООО \"ЖКХ\" п. Сулея                ",0.318,0.252,3.14,5.12,3.44,5.61,3.65,5.95,3.74,6.1,3.87,6.31,4.28,6.98,4.75,4.47,4.2,3.92]
[null,null,null,null,null,null,null,null,null,null,null,null,null,null,null,null,null,"ООО \"КОНиС-1\"                      ",0.318,0.252,3.14,5.12,3.44,5.61,3.65,5.95,3.74,6.1,3.87,6.31,4.28,6.98,4.75,4.47,4.2,3.92]
[null,null,null,null,null,null,null,null,null,null,null,null,null,null,null,null,null,"ООО \"Транстепло\" ",0.318,0.252,3.14,5.12,3.44,5.61,3.65,5.95,3.74,6.1,3.87,6.31,4.28,6.98,4.75,4.47,4.2,3.92]
[null,null,null,null,null,null,null,null,null,null,null,null,null,null,null,null,null,"ООО \"УРАЛЭНЕРГОГРУПП\"",0.318,0.252,3.14,5.12,3.44,5.61,3.65,5.95,3.74,6.1,3.87,6.31,4.28,6.98,4.75,4.47,4.2,3.92]
[null,null,null,null,null,null,null,null,null,null,null,null,null,null,null,null,null,"ООО \"Жилищная эксплуатационная компания\" ",0.318,0.252,3.14,5.12,3.44,5.61,3.65,5.95,3.74,6.1,3.87,6.31,4.28,6.98,4.75,4.47,4.2,3.92]
[null,null,null,null,null,null,null,null,null,null,null,null,null,null,null,null,null,"МУП \"Кременкульские коммунальные системы\"  ",{"$f":"$S$109","v":0.318},{"$f":"$T$109","v":0.252},{"$f":"$U$109","v":3.14},{"$f":"$V$109","v":5.12},{"$f":"$W$109","v":3.44},{"$f":"$X$109","v":5.61},{"$f":"$Y$109","v":3.65},{"$f":"$Z$109","v":5.95},{"$f":"$AA$109","v":3.74},{"$f":"$AB$109","v":6.1},{"$f":"$AC$109","v":3.87},{"$f":"$AD$109","v":6.31},{"$f":"$AE$109","v":4.28},{"$f":"$AF$109","v":6.98},{"$f":"$AG$109","v":4.75},{"$f":"$AH$109","v":4.47},{"$f":"$AI$109","v":4.2},{"$f":"$AJ$109","v":3.92}]
[null,null,null,null,null,null,null,null,null,null,null,null,null,null,null,null,null,"Общество с ограниченной ответственностью \"ЮЖУРАЛВОДОКАНАЛ\" ",0.318,0.252,3.14,5.12,3.44,5.61,3.65,5.95,3.74,6.1,3.87,6.31,4.28,6.98,4.75,4.47,4.2,3.92]
[null,null,null,null,null,null,null,null,null,null,null,null,null,null,null,null,null,"ООО \"ВодТрансСервис\"",0.318,0.252,3.14,5.12,3.44,5.61,3.65,5.95,3.74,6.1,3.87,6.31,4.28,6.98,4.75,4.47,4.2,3.92]
[null,null,null,null,null,null,null,null,null,null,null,null,null,null,null,null,null,"ООО \"Вознесенское ЖКХ\"",0.318,0.252,3.14,5.12,3.44,5.61,3.65,5.95,3.74,6.1,3.87,6.31,4.28,6.98,4.75,4.47,4.2,3.92]
[null,null,null,null,null,null,null,null,null,null,null,null,null,null,null,null,null,"ООО \"Жил-Сервис\"",0.318,0.252,3.14,5.12,3.44,5.61,3.65,5.95,3.74,6.1,3.87,6.31,4.28,6.98,4.75,4.47,4.2,3.92]
[null,null,null,null,null,null,null,null,null,null,null,null,null,null,null,null,null,"ООО \"Здоровый дух\"",0.318,0.252,3.14,5.12,3.44,5.61,3.65,5.95,3.74,6.1,3.87,6.31,4.28,6.98,4.75,4.47,4.2,3.92]
[null,null,null,null,null,null,null,null,null,null,null,null,null,null,null,null,null,"ООО \"Комфорт\"  ",0.318,0.252,3.14,5.12,3.44,5.61,3.65,5.95,3.74,6.1,3.87,6.31,4.28,6.98,4.75,4.47,4.2,3.92]
[null,null,null,null,null,null,null,null,null,null,null,null,null,null,null,null,null,"ООО \"Соколиная гора\" ",0.318,0.252,3.14,5.12,3.44,5.61,3.65,5.95,3.74,6.1,3.87,6.31,4.28,6.98,4.75,4.47,4.2,3.92]
[null,null,null,null,null,null,null,null,null,null,null,null,null,null,null,null,null,"МУП \"ЖКХ Солнечное\"                           ",0.318,0.252,3.14,5.12,3.44,5.61,3.65,5.95,3.74,6.1,3.87,6.31,4.28,6.98,4.75,4.47,4.2,3.92]
[null,null,null,null,null,null,null,null,null,null,null,null,null,null,null,null,null,"ООО УК \"АККТиВ\"",0.318,0.252,3.14,5.12,3.44,5.61,3.65,5.95,3.74,6.1,3.87,6.31,4.28,6.98,4.75,4.47,4.2,3.92]
[null,null,null,null,null,null,null,null,null,null,null,null,null,null,null,null,null,"Южно-Уральская дирекция по тепловодоснабжению - филиал ОАО \"РЖД\" ",0.318,0.252,3.14,5.12,3.44,5.61,3.65,5.95,3.74,6.1,3.87,6.31,4.28,6.98,4.75,4.47,4.2,3.92]
[null,null,null,null,null,null,null,null,null,null,null,null,null,null,null,null,null,"МУП Скалистское ЖКХ \"Троицко-совхозное сельское поселение\"",0.318,0.252,3.14,5.12,3.44,5.61,3.65,5.95,3.74,6.1,3.87,6.31,4.28,6.98,4.75,4.47,4.2,3.92]
[null,null,null,null,null,null,null,null,null,null,null,null,null,null,null,null,null,"Общество с ограниченной ответственностью \"Уральская Водоснабжающая Компания-2\"",0.318,0.252,3.14,5.12,3.44,5.61,3.65,5.95,3.74,6.1,3.87,6.31,4.28,6.98,4.75,4.47,4.2,3.92]
[null,null,null,null,null,null,null,null,null,null,null,null,null,null,null,null,null,"ООО \"Белозерское ЖКХ №2\" ",0.318,0.252,3.14,5.12,3.44,5.61,3.65,5.95,3.74,6.1,3.87,6.31,4.28,6.98,4.75,4.47,4.2,3.92]
[null,null,null,null,null,null,null,null,null,null,null,null,null,null,null,null,null,"ООО \"Индустрия\"",0.318,0.252,3.14,5.12,3.44,5.61,3.65,5.95,3.74,6.1,3.87,6.31,4.28,6.98,4.75,4.47,4.2,3.92]
[null,null,null,null,null,null,null,null,null,null,null,null,null,null,null,null,null,"ООО \"Новые коммунальные системы-Троицк\"",0.318,0.252,3.14,5.12,3.44,5.61,3.65,5.95,3.74,6.1,3.87,6.31,4.28,6.98,4.75,4.47,4.2,3.92]
[null,null,null,null,null,null,null,null,null,null,null,null,null,null,null,null,null,"ООО \"Районные тепловые сети\"",0.318,0.252,3.14,5.12,3.44,5.61,3.65,5.95,3.74,6.1,3.87,6.31,4.28,6.98,4.75,4.47,4.2,3.92]
[null,null,null,null,null,null,null,null,null,null,null,null,null,null,null,null,null,"ООО \"Родниковское ЖКХ\"        ",0.318,0.252,3.14,5.12,3.44,5.61,3.65,5.95,3.74,6.1,3.87,6.31,4.28,6.98,4.75,4.47,4.2,3.92]
[null,null,null,null,null,null,null,null,null,null,null,null,null,null,null,null,null,"ООО \"Управляющая компания\"",0.318,0.252,3.14,5.12,3.44,5.61,3.65,5.95,3.74,6.1,3.87,6.31,4.28,6.98,4.75,4.47,4.2,3.92]
[null,null,null,null,null,null,null,null,null,null,null,null,null,null,null,null,null,"ООО \"Целинное ЖКХ\"                ",0.318,0.252,3.14,5.12,3.44,5.61,3.65,5.95,3.74,6.1,3.87,6.31,4.28,6.98,4.75,4.47,4.2,3.92]
[null,null,null,null,null,null,null,null,null,null,null,null,null,null,null,null,null,"ООО \"МАКС\"",0.318,0.252,3.14,5.12,3.44,5.61,3.65,5.95,3.74,6.1,3.87,6.31,4.28,6.98,4.75,4.47,4.2,3.92]
[null,null,null,null,null,null,null,null,null,null,null,null,null,null,null,null,null,"МУП \"Дробышевское ЖКХ\"",0.318,0.252,3.14,5.12,3.44,5.61,3.65,5.95,3.74,6.1,3.87,6.31,4.28,6.98,4.75,4.47,4.2,3.92]
[null,null,null,null,null,null,null,null,null,null,null,null,null,null,null,null,null,"ФГКУ Комбинат \"Уральский\" Росрезерва",0.318,0.252,3.14,5.12,3.44,5.61,3.65,5.95,3.74,6.1,3.87,6.31,4.28,6.98,4.75,4.47,4.2,3.92]
[null,null,null,null,null,null,null,null,null,null,null,null,null,null,null,null,null,"ЗАО КХП \"Злак\"",0.318,0.252,3.14,5.12,3.44,5.61,3.65,5.95,3.74,6.1,3.87,6.31,4.28,6.98,4.75,4.47,4.2,3.92]
[null,null,null,null,null,null,null,null,null,null,null,null,null,null,null,null,null,"МУП \"Кичигинское ЖКХ\"",0.318,0.252,3.14,5.12,3.44,5.61,3.65,5.95,3.74,6.1,3.87,6.31,4.28,6.98,4.75,4.47,4.2,3.92]
[null,null,null,null,null,null,null,null,null,null,null,null,null,null,null,null,null,"МУП \"Коммунальные услуги\"",0.318,0.252,3.14,5.12,3.44,5.61,3.65,5.95,3.74,6.1,3.87,6.31,4.28,6.98,4.75,4.47,4.2,3.92]
[null,null,null,null,null,null,null,null,null,null,null,null,null,null,null,null,null,"МУП \"Красносельское ЖКХ\"",0.318,0.252,3.14,5.12,3.44,5.61,3.65,5.95,3.74,6.1,3.87,6.31,4.28,6.98,4.75,4.47,4.2,3.92]
[null,null,null,null,null,null,null,null,null,null,null,null,null,null,null,null,null,"ОАО \"Санаторий Урал\" ",0.318,0.252,3.14,5.12,3.44,5.61,3.65,5.95,3.74,6.1,3.87,6.31,4.28,6.98,4.75,4.47,4.2,3.92]
[null,null,null,null,null,null,null,null,null,null,null,null,null,null,null,null,null,"ООО \"Каменское ЖКХ\"",0.318,0.252,3.14,5.12,3.44,5.61,3.65,5.95,3.74,6.1,3.87,6.31,4.28,6.98,4.75,4.47,4.2,3.92]
[null,null,null,null,null,null,null,null,null,null,null,null,null,null,null,null,null,"ООО \"Рождественское ЖКХ\"",0.318,0.252,3.14,5.12,3.44,5.61,3.65,5.95,3.74,6.1,3.87,6.31,4.28,6.98,4.75,4.47,4.2,3.92]
[null,null,null,null,null,null,null,null,null,null,null,null,null,null,null,null,null,"ООО \"Мордвиновское ЖКХ\"",0.318,0.252,3.14,5.12,3.44,5.61,3.65,5.95,3.74,6.1,3.87,6.31,4.28,6.98,4.75,4.47,4.2,3.92]
[null,null,null,null,null,null,null,null,null,null,null,null,null,null,null,null,null,"ООО \"Петровское ЖКХ\"",0.318,0.252,3.14,5.12,3.44,5.61,3.65,5.95,3.74,6.1,3.87,6.31,4.28,6.98,4.75,4.47,4.2,3.92]
[null,null,null,null,null,null,null,null,null,null,null,null,null,null,null,null,null,"ООО \"Половинское ЖКХ\"",0.318,0.252,3.14,5.12,3.44,5.61,3.65,5.95,3.74,6.1,3.87,6.31,4.28,6.98,4.75,4.47,4.2,3.92]
[null,null,null,null,null,null,null,null,null,null,null,null,null,null,null,null,null,"ООО \"Пром-тепло\"",0.318,0.252,3.14,5.12,3.44,5.61,3.65,5.95,3.74,6.1,3.87,6.31,4.28,6.98,4.75,4.47,4.2,3.92]
[null,null,null,null,null,null,null,null,null,null,null,null,null,null,null,null,null,"МУП \"Жилищно-коммунальные услуги\"",0.318,0.252,3.14,5.12,3.44,5.61,3.65,5.95,3.74,6.1,3.87,6.31,4.28,6.98,4.75,4.47,4.2,3.92]
[null,null,null,null,null,null,null,null,null,null,null,null,null,null,null,null,null,"ООО \"Хуторское ЖКХ\"",0.318,0.252,3.14,5.12,3.44,5.61,3.65,5.95,3.74,6.1,3.87,6.31,4.28,6.98,4.75,4.47,4.2,3.92]
[null,null,null,null,null,null,null,null,null,null,null,null,null,null,null,null,null,"ФГБУ \"ЦЖКУ\" МИНОБОРОНЫ РОССИИ",0.318,0.252,3.14,5.12,3.44,5.61,3.65,5.95,3.74,6.1,3.87,6.31,4.28,6.98,4.75,4.47,4.2,3.92]
[null,null,null,null,null,null,null,null,null,null,null,null,null,null,null,null,null,"МУП \"Жилищно-коммунальное хозяйство Уйское\" ",0.318,0.252,3.14,5.12,3.44,5.61,3.65,5.95,3.74,6.1,3.87,6.31,4.28,6.98,4.75,4.47,4.2,3.92]
[null,null,null,null,null,null,null,null,null,null,null,null,null,null,null,null,null,"ООО \"Вода\"",0.318,0.252,3.14,5.12,3.44,5.61,3.65,5.95,3.74,6.1,3.87,6.31,4.28,6.98,4.75,4.47,4.2,3.92]
[null,null,null,null,null,null,null,null,null,null,null,null,null,null,null,null,null,"МУП \"Водоснабжение\" ",0.318,0.252,3.14,5.12,3.44,5.61,3.65,5.95,3.74,6.1,3.87,6.31,4.28,6.98,4.75,4.47,4.2,3.92]
[null,null,null,null,null,null,null,null,null,null,null,null,null,null,null,null,null,"ООО \"Мирненское ЖЭУ\"",0.318,0.252,3.14,5.12,3.44,5.61,3.65,5.95,3.74,6.1,3.87,6.31,4.28,6.98,4.75,4.47,4.2,3.92]
[null,null,null,null,null,null,null,null,null,null,null,null,null,null,null,null,null,"ООО \"Жилищный сервис\"",0.318,0.252,3.14,5.12,3.44,5.61,3.65,5.95,3.74,6.1,3.87,6.31,4.28,6.98,4.75,4.47,4.2,3.92]
[null,null,null,null,null,null,null,null,null,null,null,null,null,null,null,null,null,"ООО \"КундравыКом\"  ",0.318,0.252,3.14,5.12,3.44,5.61,3.65,5.95,3.74,6.1,3.87,6.31,4.28,6.98,4.75,4.47,4.2,3.92]
[null,null,null,null,null,null,null,null,null,null,null,null,null,null,null,null,null,"ООО \"ТеплоЭнергоРесурс\" ",0.318,0.252,3.14,5.12,3.44,5.61,3.65,5.95,3.74,6.1,3.87,6.31,4.28,6.98,4.75,4.47,4.2,3.92]
[null,null,null,null,null,null,null,null,null,null,null,null,null,null,null,null,null,"МУП \"ЧРКС\"",0.318,0.252,3.14,5.12,3.44,5.61,3.65,5.95,3.74,6.1,3.87,6.31,4.28,6.98,4.75,4.47,4.2,3.92]
[null,null,null,null,null,null,null,null,null,null,null,null,null,null,null,null,null,"ООО УК \"КвадроИнвест\"",0.318,0.252,3.14,5.12,3.44,5.61,3.65,5.95,3.74,6.1,3.87,6.31,4.28,6.98,4.75,4.47,4.2,3.92]
[null,null,null,null,null,null,null,null,null,null,null,null,null,null,null,null,null,"ООО \"ФилимоноКом\"",0.318,0.252,0,5.12,3.44,5.61,3.65,5.95,3.74,6.1,3.87,6.31,4.28,6.98,4.75,4.47,4.2,3.92]
[null,null,null,null,null,null,null,null,null,null,null,null,null,null,null,null,null,"ФГБУ \"ЦЖКУ\" МИНОБОРОНЫ РОССИИ",0.318,0.252,3.14,5.12,3.44,5.61,3.65,5.95,3.74,6.1,3.87,6.31,4.28,6.98,4.75,4.47,4.2,3.92]
[null,null,null,null,null,null,null,null,null,null,null,null,null,null,null,null,null,"Южно-Уральская дирекция по тепловодоснабжению - филиал ОАО \"РЖД\" ",0.318,0.252,3.14,5.12,3.44,5.61,3.65,5.95,3.74,6.1,3.87,6.31,4.28,6.98,4.75,4.47,4.2,3.92]
[null,null,null,null,null,null,null,null,null,null,null,null,null,null,null,null,null,"Общество с ограниченной ответственностью \"ЧЕСМЕНСКОЕ УПРАВЛЕНИЕ КОММУНАЛЬНОГО ХОЗЯЙСТВА\"",0.318,0.252,3.14,5.12,3.44,5.61,3.65,5.95,3.74,6.1,3.87,6.31,4.28,6.98,4.75,4.47,4.2,3.92]
[null,null,null,null,null,null,null,null,null,null,null,null,null,null,null,null,null,"ООО \"Атлант\"",0.318,0.252,3.14,5.12,3.44,5.61,3.65,5.95,3.74,6.1,3.87,6.31,4.28,6.98,4.75,4.47,4.2,3.92]
[null,null,null,null,null,null,null,null,null,null,null,null,null,null,null,null,null,"ООО \"СтройТеплоСервис\"                                            ",0.318,0.252,3.14,5.12,3.44,5.61,3.65,5.95,3.74,6.1,3.87,6.31,4.28,6.98,4.75,4.47,4.2,3.92]
[null,null,null,null,null,null,null,null,null,null,null,null,null,null,null,null,null,"ООО \"Водоканал\"",0.318,0.252,3.14,5.12,3.44,5.61,3.65,5.95,3.74,6.1,3.87,6.31,4.28,6.98,4.75,4.47,4.2,3.92]
[null,null,null,null,null,null,null,null,null,null,null,null,null,null,null,null,null,"МУП \"Ашинское коммунальное хозяйство\"",0.32800000000000001,0.26,3.44,5.6,3.77,6.14,4,6.52,4.0999999999999996,6.68,4.24,6.9,4.6900000000000004,7.65,5.2,4.9000000000000004,4.5999999999999996,4.29]
[null,null,null,null,null,null,null,null,null,null,null,null,null,null,null,null,null,"ООО Индустриальный Парк \"Станкомаш\"",5.149,4.8680000000000003,3.34,5.44,3.66,5.96,3.88,6.33,3.98,6.48,4.1100000000000003,6.7,4.55,7.42,4.17,4.76,4.46,4.17]
[null,null,null,null,null,null,null,null,null,null,null,null,null,null,null,null,null,"МУП \"Многоотраслевое производственное объединение энергосетей\" города Трехгорного ",1.2909999999999999,0.60599999999999998,3.44,5.6,3.77,6.14,4,6.52,4.0999999999999996,6.68,4.24,6.9,4.6900000000000004,7.65,5.2,4.9000000000000004,4.5999999999999996,4.29]
[null,null,null,null,null,null,null,null,null,null,null,null,null,null,null,null,null,"АО \"Трансэнерго\"",1.2370000000000001,0.76300000000000001,null,null,3.77,6.14,4,6.52,4.0999999999999996,6.68,4.24,6.9,4.6900000000000004,7.65,5.2,4.9000000000000004,4.5999999999999996,4.29,null,null,null,null,null,null,null,null,null,null,null,null,null,null,null,null,null,null,null,null,null,null,null,null,null,null,null,null,null,null,null,null,null,null,null,null,null,null,null,null,null,null,null,null,null,null,null,null,null,null,null,null,1.82,2.95,0.74,1.21,4.18,6.82,5.0999999999999996,8.31,4.92,8.01,2.79,4.55,null,null,null,null,null,null,null,null,null,null,null,null,null,null,null,null,null,null,null,null,null,null,null,null,null,null,null,null,null,null,null,null,null,null,null,null,null,null,null,null,null,null,null,null,null,null,null,null,null,null,null,null,null,null,null,null,null,null,null,null,null,null,null,null,null,null,null,null,null,null,2.88,4.6900000000000004,3.44,5.6]
[null,null,null,null,null,null,null,null,null,null,null,null,null,null,null,null,null,"МУП \"ПОВВ\" на территории Копейского городского округа",2.54,0.45,9.8000000000000007,15.18,10.15,16.350000000000001,10.5,16.920000000000002,10.63,17.12,10.85,17.489999999999998,11.49,18.54,13.27,12.76,12.25,11.74,23.45,37.21,26.51,43.01,29.07,47.2,29.08,47.2,31.64,51.38,38.869999999999997,63.17,26.51,29.08,31.64,38.869999999999997,null,null,null,null,null,null,null,null,null,null,null,null,5.59,8.92,7.33,11.75,9.06,14.58,10.8,17.41,12.69,20.48,9.27,11.37,13.47,15.57,null,null,null,null,null,null,null,null,null,null,8.34,13.4,9.5399999999999991,15.36,10.74,17.309999999999999,11.94,19.27,11.75,18.95,13.31,21.5,null,null,null,null,23.28,37.42,26.77,43.45,29.25,47.48,30.27,49.15,31.73,51.52,40.51,65.84,null,null,null,null,null,null,null,null,null,null,null,null,368,null,462.36,null,471.55,null,480.73,null,487.35,null,490.75,null,607.54,null,643.63,null,679.73,null,698.66,null,651.87,null,783.55,null,869.53,null,955.51,null,987.38,null,462.36,471.55,480.73,487.35,607.54,643.63,679.73,698.66,783.55,869.53,955.51,987.38]
[null,null,null,null,null,null,null,null,null,null,null,null,null,null,null,null,null,"МУП \"ПОВВ\" на территории Челябинского городского окурга",25.001000000000001,36.624000000000002,9.7799999999999994,15.01,10.130000000000001,16.32,10.48,16.899999999999999,10.61,17.100000000000001,10.84,17.47,11.48,18.510000000000002,13.62,13.1,12.57,12.05,23.3,37.01,26.47,42.94,29.03,47.13,29.03,47.13,31.6,51.31,38.81,63.07,27.21,29.84,32.479999999999997,39.9,null,null,null,null,null,null,null,null,null,null,null,null,5.58,8.9,7.31,11.73,9.0500000000000007,14.55,10.78,17.38,12.67,20.45,9.51,11.67,13.82,15.98,null,null,null,null,null,null,null,null,null,null,8.33,13.38,9.5299999999999994,15.33,10.73,17.29,11.92,19.239999999999998,11.73,18.93,13.29,21.47,null,null,null,null,23.24,37.22,26.73,43.38,29.21,47.41,30.23,49.07,31.68,51.44,40.450000000000003,65.75,null,null,null,null,null,null,null,null,null,null,null,null,366.77,null,461.66,null,470.83,null,480.01,null,486.61,null,489.52,".",606.62,null,642.66,null,678.71,null,697.61,null,650.64,null,782.36,null,868.21,null,954.07,null,985.89,null,474.56,483.99,493.42,500.21,623.57000000000005,660.61,697.66,717.09,804.22,892.47,980.71,1013.43]
[null,null,null,null,null,null,null,null,null,null,null,null,null,null,null,null,null,"МУП \"ПОВВ\" на территории Коркинского и Розинского городских поселений ",2.54,0.45,9.8000000000000007,15.18,10.15,16.350000000000001,10.5,16.920000000000002,10.63,17.12,10.85,17.489999999999998,11.49,18.54,13.27,12.76,12.25,11.74,23.45,37.21,26.51,43.01,29.07,47.2,29.08,47.2,31.64,51.38,38.869999999999997,63.17,26.51,29.08,31.64,38.869999999999997,null,null,null,null,null,null,null,null,null,null,null,null,5.59,8.92,7.33,11.75,9.06,14.58,10.8,17.41,12.69,20.48,9.27,11.37,13.47,15.57,null,null,null,null,null,null,null,null,null,null,8.34,13.4,9.5399999999999991,15.36,10.74,17.309999999999999,11.94,19.27,11.75,18.95,13.31,21.5,null,null,null,null,23.28,37.42,26.77,43.45,29.25,47.48,30.27,49.15,31.73,51.52,40.51,65.84,null,null,null,null,null,null,null,null,null,null,null,null,368,null,462.36,null,471.55,null,480.73,null,487.35,null,490.75,null,607.54,null,643.63,null,679.73,null,698.66,null,651.87,null,783.55,null,869.53,null,955.51,null,987.38,null,462.36,471.55,480.73,487.35,607.54,643.63,679.73,698.66,783.55,869.53,955.51,987.38]
[null,null,null,null,null,null,null,null,null,null,null,null,null,null,null,null,null,"МП трест \"Водоканал\"",14.619,16.204999999999998,9.4700000000000006,15.36,9.94,16.14,10.29,16.71,10.42,16.920000000000002,10.64,17.29,11.29,18.329999999999998,5.75,6.85,7.95,9.0500000000000007,null,null,null,null,null,null,null,null,null,null,null,null,null,null,null,null,8.06,13.08,8.4700000000000006,13.74,8.76,14.22,8.8699999999999992,14.4,9.06,14.71,9.61,15.6,5.38,8.7100000000000009,7.12,11.54,8.85,14.37,10.59,17.2,12.48,20.28,6.13,7.87,9.6199999999999992,11.37,4.59,7.42,6.07,9.82,7.54,12.23,9.02,14.64,10.62,17.25,7.32,11.87,9.5299999999999994,15.47,10.53,17.11,11.73,19.059999999999999,11.54,18.75,13.1,21.3,null,null,null,null,null,null,null,null,null,null,null,null,null,null,null,null,6.24,10.1,8.11,13.16,8.9700000000000006,14.56,9.99,16.22,9.83,15.95,11.15,18.12]
[null,null,null,null,null,null,null,null,null,null,null,null,null,null,null,null,null,null,null,null,"полиэтиленовые трубы ",null,null,null,null,null,null,null,null,null,null,null,null,null,null,null,null,null,null,null,null,null,null,null,null,null,null,null,null,null,null,null,null,null,null,null,null,null,null,null,null,null,null,null,"чугунные трубы ",null,null,null,null,null,null,null,null,null,null,null,null,null,null,null,null,null,null,null,null,null,null,null,"стальные трубы ",null,null,null,null,null,null,null,null,null,null,null,null,null,null,null,null,null,null,null,null,null,null,null,null,null,null,null,null,null,null,null,null,null,null,null,null,null,null,null,"прокол сети водоснабжения ",null,null,null,null,null,null,null,null,null,null,null,null,null,null,null,null,null,null,null,null,null,null,null,null,null,null,null,null,null,"прокол сети водоотведения "]
[null,null,null,null,null,null,null,null,null,null,null,null,null,null,null,null,null,null,null,null,"водопроводная сеть диаметр",null,null,null,null,null,null,null,null,null,null,null,"канализационная сеть",null,null,null,"прокладка сети из полиэтиленовых труб в стальном футляре ",null,null,null,null,null,null,null,null,null,null,null,"прокладка сети из полиэтиленовых труб в стальном футляре",null,null,null,"водовод - полиэтиленовые трубы",null,null,null,null,null,null,null,null,null,null,null,"водопроводная сеть - чугунные напорные раструбные трубы",null,null,null,null,null,null,null,null,null,"канализационная сеть",null,null,null,"водовод - чугунные напорные раструбные трубы ",null,null,null,null,null,null,null,null,null,"водопроводная сеть диаметр",null,null,null,null,null,null,null,null,null,null,null,"канализационная сеть",null,null,null,"прокладка сети в стальном футляре",null,null,null,null,null,null,null,null,null,null,null,"водовод -стальные трубы",null,null,null,null,null,null,null,null,null,null,null,"на длину  до 10 м глубиной 3 м",null,null,null,null,null,null,null,null,null,"на длину  до 30 м глубиной 3 м",null,null,null,null,null,null,null,null,null,"на длину  до 50 м глубиной 3 м",null,null,null,null,null,null,null,null,null,"на длину  до 10 м глубиной 3 м",null,null,null,"на длину  до 30 м глубиной 3 м",null,null,null,"на длину  до 50 м глубиной 3 м",null,null,null,"водопроводная сеть - полиэтиленовые трубы"]
[null,null,null,null,null,null,null,null,null,null,null,null,null,null,null,null,null,null,"Ставка тарифа за подключаемую нагрузку водопроводной сети",null,"1 нитка","2 нитки","1 нитка","2 нитки","1 нитка","2 нитки","1 нитка","2 нитки","1 нитка","2 нитки","1 нитка","2 нитки",null,null,null,null,"1 нитка","2 нитки","1 нитка","2 нитки","1 нитка","2 нитки","1 нитка","2 нитки","1 нитка","2 нитки","1 нитка","2 нитки",null,null,null,null,"1 нитка","2 нитки","1 нитка","2 нитки","1 нитка","2 нитки","1 нитка","2 нитки","1 нитка","2 нитки","1 нитка","2 нитки","1 нитка","2 нитки","1 нитка","2 нитки","1 нитка","2 нитки","1 нитка","2 нитки","1 нитка","2 нитки",null,null,null,null,"1 нитка","2 нитки","1 нитка","2 нитки","1 нитка","2 нитки","1 нитка","2 нитки","1 нитка","2 нитки","1 нитка","2 нитки","1 нитка","2 нитки","1 нитка","2 нитки","1 нитка","2 нитки","1 нитка","2 нитки","1 нитка","2 нитки",null,null,null,null,"1 нитка","2 нитки","1 нитка","2 нитки","1 нитка","2 нитки","1 нитка","2 нитки","1 нитка","2 нитки","1 нитка","2 нитки","1 нитка","2 нитки","1 нитка","2 нитки","1 нитка","2 нитки","1 нитка","2 нитки","1 нитка","2 нитки","1 нитка","2 нитки","1 нитка","2 нитки","1 нитка","2 нитки","1 нитка","2 нитки","1 нитка","2 нитки","1 нитка","2 нитки","1 нитка","2 нитки","1 нитка","2 нитки","1 нитка","2 нитки","1 нитка","2 нитки","1 нитка","2 нитки","1 нитка","2 нитки","1 нитка","2 нитки","1 нитка","2 нитки","1 нитка","2 нитки","1 нитка","2 нитки",null,null,null,null,null,null,null,null,null,null,null,null,"1 нитка","2 нитки","1 нитка","2 нитки"]
[null,null,null,null,null,null,null,null,null,null,null,null,null,null,null,null,null,null,"водопроводной сети","канализационной сети","менее 70 мм (включительно)","менее 70 мм (включительно)","от 70 мм до 100 мм (включительно)","от 70 мм до 100 мм (включительно)","от 100 мм до 125 мм (включительно)","от 100 мм до 125 мм (включительно)","от 125 мм до 150 мм (включительно)","от 125 мм до 150 мм (включительно)","от 150 мм до 200 мм (включительно)","от 150 мм до 200 мм (включительно)","от 200 мм до 250 мм (включительно)","от 200 мм до 250 мм (включительно)","до 100 мм (включительно)","от 100 мм до 160 мм (включительно)","от 160 мм до 200 мм (включительно)","от 200 мм до 250 мм (включительно)","менее 70 мм (включительно)","менее 70 мм (включительно)","от 70 мм до 100 мм (включительно)","от 70 мм до 100 мм (включительно)","от 100 мм до 125 мм (включительно)","от 100 мм до 125 мм (включительно)","от 125 мм до 150 мм (включительно)","от 125 мм до 150 мм (включительно)","от 150 мм до 200 мм (включительно)","от 150 мм до 200 мм (включительно)","от 200 мм до 250 мм (включительно)","от 200 мм до 250 мм (включительно)","до 125 мм (включительно)","от 125 мм до 150 мм (включительно)","от 150 мм до 200 мм (включительно)","от 200 мм до 250 мм (включительно)","менее 70 мм (включительно)","менее 70 мм (включительно)","от 70 мм до 100 мм (включительно)","от 70 мм до 100 мм (включительно)","от 100 мм до 125 мм (включительно)","от 100 мм до 125 мм (включительно)","от 125 мм до 150 мм (включительно)","от 125 мм до 150 мм (включительно)","от 150 мм до 200 мм (включительно)","от 150 мм до 200 мм (включительно)","от 200 мм до 250 мм (включительно)","от 200 мм до 250 мм (включительно)","менее 70 мм (включительно)","менее 70 мм (включительно)","от 70 мм до 100 мм (включительно)","от 70 мм до 100 мм (включительно)","от 100 мм до 150 мм (включительно)","от 100 мм до 150 мм (включительно)","от 150 мм до 200 мм (включительно)","от 150 мм до 200 мм (включительно)","от 200 мм до 250 мм (включительно)","от 200 мм до 250 мм (включительно)","до 100 мм (включительно)","от 100 мм до 150 мм (включительно)","от 150 мм до 200 мм (включительно)","от 200 мм до 250 мм (включительно)","менее 70 мм (включительно)","менее 70 мм (включительно)","от 70 мм до 100 мм (включительно)","от 70 мм до 100 мм (включительно)","от 100 мм до 150 мм (включительно)","от 100 мм до 150 мм (включительно)","от 150 мм до 200 мм (включительно)","от 150 мм до 200 мм (включительно)","от 200 мм до 250 мм (включительно)","от 200 мм до 250 мм (включительно)","менее 70 мм (включительно)","менее 70 мм (включительно)","от 70 мм до 100 мм (включительно)","от 70 мм до 100 мм (включительно)","от 100 мм до 125 мм (включительно)","от 100 мм до 125 мм (включительно)","от 125 мм до 150 мм (включительно)","от 125 мм до 150 мм (включительно)","от 150 мм до 200 мм (включительно)","от 150 мм до 200 мм (включительно)","от 200 мм до 250 мм (включительно)","от 200 мм до 250 мм (включительно)","до 100 мм (включительно)","от 100 мм до 150 мм (включительно)","от 150 мм до 200 мм (включительно)","от 200 мм до 250 мм (включительно)","менее 70 мм (включительно)","менее 70 мм (включительно)","от 70 мм до 100 мм (включительно)","от 70 мм до 100 мм (включительно)","от 100 мм до 125 мм (включительно)","от 100 мм до 125 мм (включительно)","от 125 мм до 150 мм (включительно)","от 125 мм до 150 мм (включительно)","от 150 мм до 200 мм (включительно)","от 150 мм до 200 мм (включительно)","от 200 мм до 250 мм (включительно)","от 200 мм до 250 мм (включительно)","менее 70 мм (включительно)","менее 70 мм (включительно)","от 70 мм до 100 мм (включительно)","от 70 мм до 100 мм (включительно)","от 100 мм до 125 мм (включительно)","от 100 мм до 125 мм (включительно)","от 125 мм до 150 мм (включительно)","от 125 мм до 150 мм (включительно)","от 150 мм до 200 мм (включительно)","от 150 мм до 200 мм (включительно)","от 200 мм до 250 мм (включительно)","от 200 мм до 250 мм (включительно)","менее 70 мм (включительно)","менее 70 мм (включительно)","от 70 мм до 100 мм (включительно)","от 70 мм до 100 мм (включительно)","от 100 мм до 125 мм (включительно)","от 100 мм до 125 мм (включительно)","от 150 мм до 200 мм (включительно)","от 150 мм до 200 мм (включительно)","от 200 мм до 250 мм (включительно)","от 200 мм до 250 мм (включительно)","менее 70 мм (включительно)","менее 70 мм (включительно)","от 70 мм до 100 мм (включительно)","от 70 мм до 100 мм (включительно)","от 100 мм до 125 мм (включительно)","от 100 мм до 125 мм (включительно)","от 150 мм до 200 мм (включительно)","от 150 мм до 200 мм (включительно)","от 200 мм до 250 мм (включительно)","от 200 мм до 250 мм (включительно)","менее 70 мм (включительно)","менее 70 мм (включительно)","от 70 мм до 100 мм (включительно)","от 70 мм до 100 мм (включительно)","от 100 мм до 125 мм (включительно)","от 100 мм до 125 мм (включительно)","от 150 мм до 200 мм (включительно)","от 150 мм до 200 мм (включительно)","от 200 мм до 250 мм (включительно)","от 200 мм до 250 мм (включительно)","до 100 мм (включительно)","от 100 мм до 150 мм (включительно)","от 150 мм до 200 мм (включительно)","от 200 мм до 250 мм (включительно)","до 100 мм (включительно)","от 100 мм до 150 мм (включительно)","от 150 мм до 200 мм (включительно)","от 200 мм до 250 мм (включительно)","до 100 мм (включительно)","от 100 мм до 150 мм (включительно)","от 150 мм до 200 мм (включительно)","от 200 мм до 250 мм (включительно)","менее 40 мм (включительно)","менее 40 мм (включительно)","от 40 мм до 70 мм (включительно)","от 40 мм до 70 мм (включительно)"]
[null,null,null,null,null,null,null,null,null,null,null,null,null,null,null,null,null,1,2,3,4,5,6,7,8,9,10,11,12,13,14,15,16,17,18,19,20,21,22,23,24,25,26,27,28,29,30,31,32,33,34,35,36,37,38,39,40,41,42,43,44,45,46,47,48,49,50,51,52,53,54,55,56,57,58,59,60,61,62,63,64,65,66,67,68,69,70,71,72,73,74,75,76,77,78,79,80,81,82,83,84,85,86,87,88,89,90,91,92,93,94,95,96,97,98,99,100,101,102,103,104,105,106,107,108,109,110,111,112,113,114,115,116,117,118,119,120,121,122,123,124,125,126,127,128,129,130,131,132,133,134,135,136,137,138,139,140,141,142,143,144,145,146,147,148,149,150,151,152,153,154,155,156,157]